OrganisationNameLabel,OrganisationURI,EffectiveDate,Directorate/ServiceWhereExpenditureIncurred,ServiceCategoryLabel,ServiceCategoryURI,Supplier,SupplierRegisteredCompany Number,PaymentDate,TransactionNumber,NetAmount,IrrecoverableVAT,PurposeOfSpend,ProcurementClassification:ProclassLabel,ProcrementClassification:ProClassCode
South Lakeland District Council,http://opendatacommunities.org/id/district-council/south-lakeland,31/08/2015,ICT Group,Central Services,http://opendatacommunities.org/def/concept/finance/sercop/objective/102,NORTHGATE PUBLIC SERVICES (UK) LTD,968498,26/08/2015,48398,774,0,Adlib Express DTF Annual Support,271600,ICT Software Customised & Bespoke
South Lakeland District Council,http://opendatacommunities.org/id/district-council/south-lakeland,31/08/2015,Development Strategy,Cultural Environmental Regulatory & Planning Services,http://opendatacommunities.org/def/concept/finance/sercop/objective/104,SOUTH LAKES HOUSING,IP031419,05/08/2015,50572,"1,702.46",0,South Lakes Housing management fees,191700,Facilities Property Management
South Lakeland District Council,http://opendatacommunities.org/id/district-council/south-lakeland,31/08/2015,Development Strategy,Cultural Environmental Regulatory & Planning Services,http://opendatacommunities.org/def/concept/finance/sercop/objective/104,SOUTH LAKES HOUSING,IP031419,05/08/2015,50572,130.08,0,South Lakes Housing management fees,191700,Facilities Property Management
South Lakeland District Council,http://opendatacommunities.org/id/district-council/south-lakeland,31/08/2015,Development Strategy,Cultural Environmental Regulatory & Planning Services,http://opendatacommunities.org/def/concept/finance/sercop/objective/104,SOUTH LAKES HOUSING,IP031419,05/08/2015,50572,"1,190.00",0,South Lakes Housing management fees,191700,Facilities Property Management
South Lakeland District Council,http://opendatacommunities.org/id/district-council/south-lakeland,31/08/2015,Development Strategy,Central Services,http://opendatacommunities.org/def/concept/finance/sercop/objective/102,SOUTH LAKES HOUSING,IP031419,05/08/2015,50572,"1,292.98",0,South Lakes Housing management fees,191700,Facilities Property Management
South Lakeland District Council,http://opendatacommunities.org/id/district-council/south-lakeland,31/08/2015,Development Strategy,Central Services,http://opendatacommunities.org/def/concept/finance/sercop/objective/102,SOUTH LAKES HOUSING,IP031419,05/08/2015,50572,44.02,0,South Lakes Housing management fees,191700,Facilities Property Management
South Lakeland District Council,http://opendatacommunities.org/id/district-council/south-lakeland,31/08/2015,Development Strategy,Central Services,http://opendatacommunities.org/def/concept/finance/sercop/objective/102,SOUTH LAKES HOUSING,IP031419,05/08/2015,50572,555.12,0,South Lakes Housing management fees,191700,Facilities Property Management
South Lakeland District Council,http://opendatacommunities.org/id/district-council/south-lakeland,31/08/2015,Development Strategy,Housing Services,http://opendatacommunities.org/def/concept/finance/sercop/objective/108,SOUTH LAKES HOUSING,IP031419,05/08/2015,50572,"4,200.00",0,South Lakes Housing management fees,191700,Facilities Property Management
South Lakeland District Council,http://opendatacommunities.org/id/district-council/south-lakeland,31/08/2015,Development Strategy,Cultural Environmental Regulatory & Planning Services,http://opendatacommunities.org/def/concept/finance/sercop/objective/104,SOUTH LAKES HOUSING,IP031419,05/08/2015,50572,407.17,0,South Lakes Housing management fees,191700,Facilities Property Management
South Lakeland District Council,http://opendatacommunities.org/id/district-council/south-lakeland,31/08/2015,Development Strategy,Cultural Environmental Regulatory & Planning Services,http://opendatacommunities.org/def/concept/finance/sercop/objective/104,SOUTH LAKES HOUSING,IP031419,05/08/2015,50572,130.08,0,South Lakes Housing management fees,191700,Facilities Property Management
South Lakeland District Council,http://opendatacommunities.org/id/district-council/south-lakeland,31/08/2015,Development Strategy,Cultural Environmental Regulatory & Planning Services,http://opendatacommunities.org/def/concept/finance/sercop/objective/104,SOUTH LAKES HOUSING,IP031419,05/08/2015,50572,"1,190.00",0,South Lakes Housing management fees,191700,Facilities Property Management
South Lakeland District Council,http://opendatacommunities.org/id/district-council/south-lakeland,31/08/2015,Kendal Town Hall,External Trading Accounts,,NUMATIC INTERNATIONAL LIMITED,773331,05/08/2015,50983,233.11,0,Call out to floor cleaning machine at,131011,Cleaning & Janitorial Cleaning Materials
South Lakeland District Council,http://opendatacommunities.org/id/district-council/south-lakeland,31/08/2015,Lake Wardens,Cultural Environmental Regulatory & Planning Services,http://opendatacommunities.org/def/concept/finance/sercop/objective/104,CUMBRIA WASTE RECYCLING LTD,3162439,05/08/2015,51032,243.02,0,Emptying of Refuse Wheelie Bins held at,182012,Environment Waste Management Recycling
South Lakeland District Council,http://opendatacommunities.org/id/district-council/south-lakeland,31/08/2015,Lake Wardens,Cultural Environmental Regulatory & Planning Services,http://opendatacommunities.org/def/concept/finance/sercop/objective/104,CUMBRIA WASTE RECYCLING LTD,3162439,05/08/2015,51038,230.56,0,Emptying of Refuse Wheelie Bins held at,182012,Environment Waste Management Recycling
South Lakeland District Council,http://opendatacommunities.org/id/district-council/south-lakeland,31/08/2015,Social Enterprise Admin,Highways & Transport Services,http://opendatacommunities.org/def/concept/finance/sercop/objective/107,HYGIENE CLEANING SUPPLIES LTD,4753934,05/08/2015,51042,27.54,0,BK050 - Jangro foam soap dispenser,131011,Cleaning & Janitorial Cleaning Materials
South Lakeland District Council,http://opendatacommunities.org/id/district-council/south-lakeland,31/08/2015,Social Enterprise Admin,Central Services,http://opendatacommunities.org/def/concept/finance/sercop/objective/102,HYGIENE CLEANING SUPPLIES LTD,4753934,05/08/2015,51043,407.44,0,4 Boxes Jangro C-fold Hand Towels 2 Ply,131011,Cleaning & Janitorial Cleaning Materials
South Lakeland District Council,http://opendatacommunities.org/id/district-council/south-lakeland,31/08/2015,Lake Wardens,Cultural Environmental Regulatory & Planning Services,http://opendatacommunities.org/def/concept/finance/sercop/objective/104,RICKERBY LTD,4985069,05/08/2015,51062,166.91,0,Replacement of Clutch Switch,381000,Vehicle Mgt Commercial
South Lakeland District Council,http://opendatacommunities.org/id/district-council/south-lakeland,31/08/2015,Human Resources,Central Services,http://opendatacommunities.org/def/concept/finance/sercop/objective/102,TOTAL ID Ltd,6442013,17/08/2015,51228,168.95,0,3 x,192210,Facilities Security Access Control
South Lakeland District Council,http://opendatacommunities.org/id/district-council/south-lakeland,31/08/2015,Kendal Town Hall,Cultural Environmental Regulatory & Planning Services,http://opendatacommunities.org/def/concept/finance/sercop/objective/104,NUMATIC INTERNATIONAL LIMITED,773331,17/08/2015,51238,100,0,Call out to repair scrubber drier floor,131011,Cleaning & Janitorial Cleaning Materials
South Lakeland District Council,http://opendatacommunities.org/id/district-council/south-lakeland,31/08/2015,Human Resources,Central Services,http://opendatacommunities.org/def/concept/finance/sercop/objective/102,ARCO LIMITED,133804,05/08/2015,51239,115.88,0,4 x    4F9682 Arco BS Compliant First,141100,Clothing Protective
South Lakeland District Council,http://opendatacommunities.org/id/district-council/south-lakeland,31/08/2015,Social Enterprise Admin,Highways & Transport Services,http://opendatacommunities.org/def/concept/finance/sercop/objective/107,ACS BPS LTD,,05/08/2015,51242,122.63,0,5 packs of 20 cards 099-0304 Magnetic,111200,Catering Food & Beverages
South Lakeland District Council,http://opendatacommunities.org/id/district-council/south-lakeland,31/08/2015,Electoral Services,Central Services,http://opendatacommunities.org/def/concept/finance/sercop/objective/102,North Country Leisure,3683103,26/08/2015,51265,"1,635.11",0,Hire of Leisure Centre District,291400,Arts & Leisure Services Sport & Fitness
South Lakeland District Council,http://opendatacommunities.org/id/district-council/south-lakeland,31/08/2015,Electoral Services,Central Services,http://opendatacommunities.org/def/concept/finance/sercop/objective/102,North Country Leisure,3683103,26/08/2015,51265,"3,270.22",0,Hire of Leisure Centre District,291400,Arts & Leisure Services Sport & Fitness
South Lakeland District Council,http://opendatacommunities.org/id/district-council/south-lakeland,31/08/2015,Business Support Community Services,Transport Planning Policy,http://opendatacommunities.org/def/concept/finance/sercop/objective/107,ARCO LIMITED,133804,03/08/2015,51277,3.16,0,PPE 2015/16,141100,Clothing Protective
South Lakeland District Council,http://opendatacommunities.org/id/district-council/south-lakeland,31/08/2015,Business Support Community Services,Internal Trading Accounts,,ARCO LIMITED,133804,03/08/2015,51277,548.8,0,PPE 2015/16,141100,Clothing Protective
South Lakeland District Council,http://opendatacommunities.org/id/district-council/south-lakeland,31/08/2015,Business Support Community Services,Internal Trading Accounts,,ARCO LIMITED,133804,03/08/2015,51277,1.6,0,PPE 2015/16,141100,Clothing Protective
South Lakeland District Council,http://opendatacommunities.org/id/district-council/south-lakeland,31/08/2015,Business Support Community Services,Internal Trading Accounts,,ARCO LIMITED,133804,03/08/2015,51278,22.16,0,PPE 2015/16,141100,Clothing Protective
South Lakeland District Council,http://opendatacommunities.org/id/district-council/south-lakeland,31/08/2015,Business Support Community Services,Internal Trading Accounts,,ARCO LIMITED,133804,03/08/2015,51279,44.32,0,PPE 2015/16,141100,Clothing Protective
South Lakeland District Council,http://opendatacommunities.org/id/district-council/south-lakeland,31/08/2015,Business Support Community Services,Transport Planning Policy,http://opendatacommunities.org/def/concept/finance/sercop/objective/107,ARCO LIMITED,133804,03/08/2015,51280,6.66,0,PPE 2015/16,141100,Clothing Protective
South Lakeland District Council,http://opendatacommunities.org/id/district-council/south-lakeland,31/08/2015,Business Support Community Services,Internal Trading Accounts,,ARCO LIMITED,133804,03/08/2015,51280,11.64,0,PPE 2015/16,141100,Clothing Protective
South Lakeland District Council,http://opendatacommunities.org/id/district-council/south-lakeland,31/08/2015,Business Support Community Services,Transport Planning Policy,http://opendatacommunities.org/def/concept/finance/sercop/objective/107,ARCO LIMITED,133804,03/08/2015,51281,24.7,0,PPE 2015/16,141100,Clothing Protective
South Lakeland District Council,http://opendatacommunities.org/id/district-council/south-lakeland,31/08/2015,Business Support Community Services,Internal Trading Accounts,,ARCO LIMITED,133804,03/08/2015,51283,4.7,0,PPE 2015/16,141100,Clothing Protective
South Lakeland District Council,http://opendatacommunities.org/id/district-council/south-lakeland,31/08/2015,Democratic Services,Central Services,http://opendatacommunities.org/def/concept/finance/sercop/objective/102,IMPROVEMENT & DEVELOPMENT AGENCY,3675577,17/08/2015,51284,85,0,Councillor 3 nights pre-nights,202100,Financial Services Subscriptions
South Lakeland District Council,http://opendatacommunities.org/id/district-council/south-lakeland,31/08/2015,Financial Services,Central Services,http://opendatacommunities.org/def/concept/finance/sercop/objective/102,Capita Secure Information Solutions Ltd,1593831,05/08/2015,51323,"3,317.40",0,Integra 2 test upgrade consultancy,271600,ICT Software Customised & Bespoke
South Lakeland District Council,http://opendatacommunities.org/id/district-council/south-lakeland,31/08/2015,Business Support Community Services,Housing Services,http://opendatacommunities.org/def/concept/finance/sercop/objective/108,Landlord,,03/08/2015,51362,400,0,Monthly rent ,250010,Housing Letting Agents
South Lakeland District Council,http://opendatacommunities.org/id/district-council/south-lakeland,31/08/2015,Business Support Community Services,Housing Services,http://opendatacommunities.org/def/concept/finance/sercop/objective/108,Landlord,,03/08/2015,51363,600,0,Monthly rent ,999999,Unclassifiable
South Lakeland District Council,http://opendatacommunities.org/id/district-council/south-lakeland,31/08/2015,Business Support Community Services,Housing Services,http://opendatacommunities.org/def/concept/finance/sercop/objective/108,Landlord,,03/08/2015,51364,400,0,Monthly rent ,999999,Unclassifiable
South Lakeland District Council,http://opendatacommunities.org/id/district-council/south-lakeland,31/08/2015,Revenues and Benefits,SLDC as Agent,,ROYAL MAIL GROUP PLC,,10/08/2015,51365,79.05,0,Response Service Licence a/c  0055114000,301200,Mail Services� Postage
South Lakeland District Council,http://opendatacommunities.org/id/district-council/south-lakeland,31/08/2015,Social Enterprise Admin,Highways & Transport Services,http://opendatacommunities.org/def/concept/finance/sercop/objective/107,EE UK Limited,,03/08/2015,51367,119.92,0,19 sims sharing 12GB of data for a total,351000,Street & Traffic Parking Car Parks
South Lakeland District Council,http://opendatacommunities.org/id/district-council/south-lakeland,31/08/2015,Revenues and Benefits,Central Services,http://opendatacommunities.org/def/concept/finance/sercop/objective/102,MERITEC LTD,3224622,03/08/2015,51368,139.5,0,2015 -2016 RAB Processing Contract and,391200,Construction Engineering
South Lakeland District Council,http://opendatacommunities.org/id/district-council/south-lakeland,31/08/2015,Revenues and Benefits,SLDC as Agent,,ROYAL MAIL GROUP PLC,,03/08/2015,51370,"1,274.80",0,2015-2016 Postal Charges a/c 0198123013,301200,Mail Services� Postage
South Lakeland District Council,http://opendatacommunities.org/id/district-council/south-lakeland,31/08/2015,Business Support Community Services,Housing Services,http://opendatacommunities.org/def/concept/finance/sercop/objective/108,H Jenkinson & Company Ltd,169844,19/08/2015,51371,258.3,0,Cubicle Bookcase Unit  for the meeting,340000,Stationery
South Lakeland District Council,http://opendatacommunities.org/id/district-council/south-lakeland,31/08/2015,Business Support Community Services,Internal Trading Accounts,,ARCO LIMITED,133804,10/08/2015,51372,16.89,0,PPE 2015/16,141100,Clothing Protective
South Lakeland District Council,http://opendatacommunities.org/id/district-council/south-lakeland,31/08/2015,Business Support Community Services,Internal Trading Accounts,,COMPASS COMPONENTS,,05/08/2015,51373,215.35,0,Consumables 01/04/15 - 31/03/16,101400,Building General Materials
South Lakeland District Council,http://opendatacommunities.org/id/district-council/south-lakeland,31/08/2015,Business Support Community Services,Internal Trading Accounts,,BRIAN ARMISTEAD LTD T/A SINKFALL RECYCLI,4133280,05/08/2015,51374,"1,518.40",0,Green waste tipping - 2015/16,391110,Construction Buildings Construction
South Lakeland District Council,http://opendatacommunities.org/id/district-council/south-lakeland,31/08/2015,ICT Group,Central Services,http://opendatacommunities.org/def/concept/finance/sercop/objective/102,PROBRAND LTD,2653446,03/08/2015,51375,368.95,0,LBC118/45N0238       Lenovo - ThinkPad,271600,ICT Software Customised & Bespoke
South Lakeland District Council,http://opendatacommunities.org/id/district-council/south-lakeland,31/08/2015,Environment and Housing,Housing Services,http://opendatacommunities.org/def/concept/finance/sercop/objective/108,CUMBRIA RURAL HOUSING TRUST,2920997,10/08/2015,51376,621.82,0,CLT/self-build support 2015-16,250000,Housing
South Lakeland District Council,http://opendatacommunities.org/id/district-council/south-lakeland,31/08/2015,Democratic Services,Central Services,http://opendatacommunities.org/def/concept/finance/sercop/objective/102,RIVERBANK HOSPITALITY CATERING,,03/08/2015,51377,71.25,0,Buffet for 15 Councillors at 4.75 per,111000,Catering Banquet & Catering
South Lakeland District Council,http://opendatacommunities.org/id/district-council/south-lakeland,31/08/2015,Environment and Housing,Housing Services,http://opendatacommunities.org/def/concept/finance/sercop/objective/108,CHARTERED INSTITUTE OF HOUSING,,03/08/2015,51378,340,0,Housing for Level 2 Certificate in,202100,Financial Services Subscriptions
South Lakeland District Council,http://opendatacommunities.org/id/district-council/south-lakeland,31/08/2015,Policy & Partnerships,Cultural Environmental Regulatory & Planning Services,http://opendatacommunities.org/def/concept/finance/sercop/objective/104,ACTION WITH COMMUNITIES IN CUMBRIA,,03/08/2015,51379,"5,000.00",0,Provide support to Parish & Town,201700,Financial Services Grants
South Lakeland District Council,http://opendatacommunities.org/id/district-council/south-lakeland,31/08/2015,Business Support Community Services,Internal Trading Accounts,,S J Bargh,532272,03/08/2015,51380,139,0,MOTs 2015/16,381400,Vehicle Mgt Maintenance
South Lakeland District Council,http://opendatacommunities.org/id/district-council/south-lakeland,31/08/2015,Human Resources,Central Services,http://opendatacommunities.org/def/concept/finance/sercop/objective/102,KENDAL COLLEGE,,03/08/2015,51382,350,0,29.04.15 13:3015:00 E-Forms,908999,Public Bodies Not Elsewhere Classified
South Lakeland District Council,http://opendatacommunities.org/id/district-council/south-lakeland,31/08/2015,Business Support Community Services,Cultural Environmental Regulatory & Planning Services,http://opendatacommunities.org/def/concept/finance/sercop/objective/104,OCS GROUP LTD T/A CANNON HYGIENE LTD,1298292,05/08/2015,51386,70,0,Clinical waste collections - July 2015,131011,Cleaning & Janitorial Cleaning Materials
South Lakeland District Council,http://opendatacommunities.org/id/district-council/south-lakeland,31/08/2015,Social Enterprise Admin,Cultural Environmental Regulatory & Planning Services,http://opendatacommunities.org/def/concept/finance/sercop/objective/104,RAINBOW SAFETY SURFACING LTD,4820611,19/08/2015,51387,304.5,0,"6 x bags black EPDM, 30KG Resin in",331000,Sports Playground Equipment
South Lakeland District Council,http://opendatacommunities.org/id/district-council/south-lakeland,31/08/2015,Business Support Community Services,Internal Trading Accounts,,SOLWAY DAF,1393710,05/08/2015,51388,34.72,0,u bolt,381000,Vehicle Mgt Commercial
South Lakeland District Council,http://opendatacommunities.org/id/district-council/south-lakeland,31/08/2015,Business Support Community Services,Internal Trading Accounts,,EK MOTOR FACTORS LTD,838524,24/08/2015,51389,55.88,0,Wheel bearing,381400,Vehicle Mgt Maintenance
South Lakeland District Council,http://opendatacommunities.org/id/district-council/south-lakeland,31/08/2015,Coronation Hall,Cultural Environmental Regulatory & Planning Services,http://opendatacommunities.org/def/concept/finance/sercop/objective/104,CHEMICAL DESIGN,,03/08/2015,51390,"1,650.00",0,Design costs - setting images and text,131010,Cleaning & Janitorial Cleaning Materials
South Lakeland District Council,http://opendatacommunities.org/id/district-council/south-lakeland,31/08/2015,Coronation Hall,Cultural Environmental Regulatory & Planning Services,http://opendatacommunities.org/def/concept/finance/sercop/objective/104,CHEMICAL DESIGN,,03/08/2015,51390,"1,753.20",0,Design costs - setting images and text,131010,Cleaning & Janitorial Cleaning Materials
South Lakeland District Council,http://opendatacommunities.org/id/district-council/south-lakeland,31/08/2015,Coronation Hall,External Trading Accounts,,YPO,,05/08/2015,51391,49.84,0,Super grip Marigold gloves MEDIUM,152000,Consultancy Procurement
South Lakeland District Council,http://opendatacommunities.org/id/district-council/south-lakeland,31/08/2015,Coronation Hall,Cultural Environmental Regulatory & Planning Services,http://opendatacommunities.org/def/concept/finance/sercop/objective/104,YPO,,05/08/2015,51391,56.85,0,Super grip Marigold gloves MEDIUM,152000,Consultancy Procurement
South Lakeland District Council,http://opendatacommunities.org/id/district-council/south-lakeland,31/08/2015,Business Support Community Services,Housing Services,http://opendatacommunities.org/def/concept/finance/sercop/objective/108,James Andrews Recruitment Solutions,6834852,03/08/2015,51392,856.25,0,Payment for - Housing,261400,HR Temporary & Agency Staff
South Lakeland District Council,http://opendatacommunities.org/id/district-council/south-lakeland,31/08/2015,Social Enterprise Admin,Cultural Environmental Regulatory & Planning Services,http://opendatacommunities.org/def/concept/finance/sercop/objective/104,BISHOP SPORTS & LEISURE LTD,842463,19/08/2015,51393,80.8,0,Tees C14GF1460/L,291400,Arts & Leisure Services Sport & Fitness
South Lakeland District Council,http://opendatacommunities.org/id/district-council/south-lakeland,31/08/2015,Revenues and Benefits,Central Services,http://opendatacommunities.org/def/concept/finance/sercop/objective/102,BADENOCH & CLARK,1356186,03/08/2015,51394,533.4,0,Revs and Bens May 2015,261300,HR Recruitment & Assessment
South Lakeland District Council,http://opendatacommunities.org/id/district-council/south-lakeland,31/08/2015,Business Support Community Services,Internal Trading Accounts,,DENNIS EAGLE LTD,3794455,05/08/2015,51395,27.42,0,Pipe,381300,Vehicle Mgt Industrial
South Lakeland District Council,http://opendatacommunities.org/id/district-council/south-lakeland,31/08/2015,Policy & Partnerships,Cultural Environmental Regulatory & Planning Services,http://opendatacommunities.org/def/concept/finance/sercop/objective/104,The Heron Theatre,,03/08/2015,51396,600,0,Arts and Events Funding - 2015-17,291300,Arts & Leisure Services Performing Arts
South Lakeland District Council,http://opendatacommunities.org/id/district-council/south-lakeland,31/08/2015,Business Support Community Services,Internal Trading Accounts,,RIBBLESDALE AUTO ELECTRICS 1992 LTD,2732686,05/08/2015,51397,65.23,0,Lamps,381500,Vehicle Mgt Parts
South Lakeland District Council,http://opendatacommunities.org/id/district-council/south-lakeland,31/08/2015,Business Support Community Services,Internal Trading Accounts,,RIBBLESDALE AUTO ELECTRICS 1992 LTD,2732686,05/08/2015,51398,33.66,0,Lamps,381500,Vehicle Mgt Parts
South Lakeland District Council,http://opendatacommunities.org/id/district-council/south-lakeland,31/08/2015,Business Support Community Services,Housing Services,http://opendatacommunities.org/def/concept/finance/sercop/objective/108,BUNZL CLEANING & HYGIENE SUPPLIES,2902454,05/08/2015,51399,374.19,0,Cloudsoft Facial Tissues - 067606,131011,Cleaning & Janitorial Cleaning Materials
South Lakeland District Council,http://opendatacommunities.org/id/district-council/south-lakeland,31/08/2015,Business Support Community Services,Housing Services,http://opendatacommunities.org/def/concept/finance/sercop/objective/108,BUNZL CLEANING & HYGIENE SUPPLIES,2902454,05/08/2015,51400,19.08,0,Cloudsoft Facial Tissues - 067606,131011,Cleaning & Janitorial Cleaning Materials
South Lakeland District Council,http://opendatacommunities.org/id/district-council/south-lakeland,31/08/2015,Business Support Community Services,Housing Services,http://opendatacommunities.org/def/concept/finance/sercop/objective/108,Cumbria Cleaning Services,9016061,05/08/2015,51401,967.5,0,Cleaner at TVF Hostel,101300,Building Floor Coverings
South Lakeland District Council,http://opendatacommunities.org/id/district-council/south-lakeland,31/08/2015,Coronation Hall,External Trading Accounts,,Morson International,,24/08/2015,51402,119.28,0,Ulverston Market Hall cleaner to y/e 31,261300,HR Recruitment & Assessment
South Lakeland District Council,http://opendatacommunities.org/id/district-council/south-lakeland,31/08/2015,Legal Services,Internal Trading Accounts,,PENNINGTONS (KENDAL) LIMITED,434649,10/08/2015,51403,"2,500.00",0,Annual charge from April 2015 to March,182013,Environment Waste Mgt Waste Collection
South Lakeland District Council,http://opendatacommunities.org/id/district-council/south-lakeland,31/08/2015,Business Support Community Services,Internal Trading Accounts,,K S INTERNATIONAL LTD,2703321,05/08/2015,51404,85,0,Switch,381500,Vehicle Mgt Parts
South Lakeland District Council,http://opendatacommunities.org/id/district-council/south-lakeland,31/08/2015,Business Support Community Services,Internal Trading Accounts,,K S INTERNATIONAL LTD,2703321,05/08/2015,51405,353,0,Switch,381500,Vehicle Mgt Parts
South Lakeland District Council,http://opendatacommunities.org/id/district-council/south-lakeland,31/08/2015,Business Support Community Services,Internal Trading Accounts,,RIBBLESDALE AUTO ELECTRICS 1992 LTD,2732686,05/08/2015,51406,105,0,Lamps,381500,Vehicle Mgt Parts
South Lakeland District Council,http://opendatacommunities.org/id/district-council/south-lakeland,31/08/2015,Business Support Community Services,Internal Trading Accounts,,RIBBLESDALE AUTO ELECTRICS 1992 LTD,2732686,05/08/2015,51407,49.18,0,Lamps,381500,Vehicle Mgt Parts
South Lakeland District Council,http://opendatacommunities.org/id/district-council/south-lakeland,31/08/2015,Business Support Community Services,Internal Trading Accounts,,RIBBLESDALE AUTO ELECTRICS 1992 LTD,2732686,05/08/2015,51408,49.18,0,Lamps,381500,Vehicle Mgt Parts
South Lakeland District Council,http://opendatacommunities.org/id/district-council/south-lakeland,31/08/2015,Business Support Community Services,Internal Trading Accounts,,RIBBLESDALE AUTO ELECTRICS 1992 LTD,2732686,05/08/2015,51409,69,0,Lamps,381500,Vehicle Mgt Parts
South Lakeland District Council,http://opendatacommunities.org/id/district-council/south-lakeland,31/08/2015,Business Support Community Services,Internal Trading Accounts,,RIBBLESDALE AUTO ELECTRICS 1992 LTD,2732686,05/08/2015,51410,11.69,0,Lamps,381500,Vehicle Mgt Parts
South Lakeland District Council,http://opendatacommunities.org/id/district-council/south-lakeland,31/08/2015,Business Support Community Services,Internal Trading Accounts,,TAYLOR ENGINEERING & FABRICATIONS LTD,4989359,05/08/2015,51411,206.77,0,Filters,391200,Construction Engineering
South Lakeland District Council,http://opendatacommunities.org/id/district-council/south-lakeland,31/08/2015,Business Support Community Services,Internal Trading Accounts,,TAYLOR ENGINEERING & FABRICATIONS LTD,4989359,05/08/2015,51412,80.65,0,Filters,391200,Construction Engineering
South Lakeland District Council,http://opendatacommunities.org/id/district-council/south-lakeland,31/08/2015,Business Support Community Services,Internal Trading Accounts,,SOLWAY DAF,1393710,05/08/2015,51413,29.84,0,u bolt,381000,Vehicle Mgt Commercial
South Lakeland District Council,http://opendatacommunities.org/id/district-council/south-lakeland,31/08/2015,Business Support Community Services,Internal Trading Accounts,,TAYLOR ENGINEERING & FABRICATIONS LTD,4989359,05/08/2015,51414,288.8,0,Filters,391200,Construction Engineering
South Lakeland District Council,http://opendatacommunities.org/id/district-council/south-lakeland,31/08/2015,Business Support Community Services,Internal Trading Accounts,,DENNIS EAGLE LTD,3794455,05/08/2015,51416,123.22,0,Pipe,381300,Vehicle Mgt Industrial
South Lakeland District Council,http://opendatacommunities.org/id/district-council/south-lakeland,31/08/2015,Business Support Community Services,Internal Trading Accounts,,RIBBLESDALE AUTO ELECTRICS 1992 LTD,2732686,05/08/2015,51417,9.84,0,Lamps,381500,Vehicle Mgt Parts
South Lakeland District Council,http://opendatacommunities.org/id/district-council/south-lakeland,31/08/2015,Business Support Community Services,Internal Trading Accounts,,RIBBLESDALE AUTO ELECTRICS 1992 LTD,2732686,05/08/2015,51418,58.6,0,Lamps,381500,Vehicle Mgt Parts
South Lakeland District Council,http://opendatacommunities.org/id/district-council/south-lakeland,31/08/2015,Business Support Community Services,Internal Trading Accounts,,EK MOTOR FACTORS LTD,838524,24/08/2015,51419,72.03,0,Wheel bearing,381400,Vehicle Mgt Maintenance
South Lakeland District Council,http://opendatacommunities.org/id/district-council/south-lakeland,31/08/2015,Business Support Community Services,Internal Trading Accounts,,EK MOTOR FACTORS LTD,838524,24/08/2015,51420,27.62,0,Wheel bearing,381400,Vehicle Mgt Maintenance
South Lakeland District Council,http://opendatacommunities.org/id/district-council/south-lakeland,31/08/2015,Business Support Community Services,Internal Trading Accounts,,EK MOTOR FACTORS LTD,838524,24/08/2015,51421,9.55,0,Wheel bearing,381400,Vehicle Mgt Maintenance
South Lakeland District Council,http://opendatacommunities.org/id/district-council/south-lakeland,31/08/2015,Business Support Community Services,Internal Trading Accounts,,EK MOTOR FACTORS LTD,838524,24/08/2015,51422,14.76,0,Wheel bearing,381400,Vehicle Mgt Maintenance
South Lakeland District Council,http://opendatacommunities.org/id/district-council/south-lakeland,31/08/2015,Business Support Community Services,Internal Trading Accounts,,DENNIS EAGLE LTD,3794455,05/08/2015,51423,43.81,0,Pipe,381300,Vehicle Mgt Industrial
South Lakeland District Council,http://opendatacommunities.org/id/district-council/south-lakeland,31/08/2015,Business Support Community Services,Internal Trading Accounts,,SOMERS TOTALKARE LTD,5256574,05/08/2015,51424,690.28,0,Repair lifts,381300,Vehicle Mgt Industrial
South Lakeland District Council,http://opendatacommunities.org/id/district-council/south-lakeland,31/08/2015,Business Support Community Services,Internal Trading Accounts,,Preston Trade Parts Specialists,,05/08/2015,51425,63.4,0,Lenses,381400,Vehicle Mgt Maintenance
South Lakeland District Council,http://opendatacommunities.org/id/district-council/south-lakeland,31/08/2015,Business Support Community Services,Internal Trading Accounts,,Harry Park Tyres Ltd,8131208,05/08/2015,51426,65,0,Tyres,381500,Vehicle Mgt Parts
South Lakeland District Council,http://opendatacommunities.org/id/district-council/south-lakeland,31/08/2015,Business Support Community Services,Internal Trading Accounts,,Harry Park Tyres Ltd,8131208,05/08/2015,51427,40,0,Tyres,381500,Vehicle Mgt Parts
South Lakeland District Council,http://opendatacommunities.org/id/district-council/south-lakeland,31/08/2015,Business Support Community Services,Internal Trading Accounts,,K S INTERNATIONAL LTD,2703321,10/08/2015,51428,35,0,Switch,381500,Vehicle Mgt Parts
South Lakeland District Council,http://opendatacommunities.org/id/district-council/south-lakeland,31/08/2015,Business Support Community Services,Internal Trading Accounts,,K S INTERNATIONAL LTD,2703321,10/08/2015,51429,100,0,Switch,381500,Vehicle Mgt Parts
South Lakeland District Council,http://opendatacommunities.org/id/district-council/south-lakeland,31/08/2015,Business Support Community Services,Internal Trading Accounts,,K S INTERNATIONAL LTD,2703321,05/08/2015,51430,260,0,Switch,381500,Vehicle Mgt Parts
South Lakeland District Council,http://opendatacommunities.org/id/district-council/south-lakeland,31/08/2015,Business Support Community Services,Internal Trading Accounts,,Harry Park Tyres Ltd,8131208,05/08/2015,51431,239.8,0,Tyres,381500,Vehicle Mgt Parts
South Lakeland District Council,http://opendatacommunities.org/id/district-council/south-lakeland,31/08/2015,Business Support Community Services,Internal Trading Accounts,,K S INTERNATIONAL LTD,2703321,05/08/2015,51432,85,0,Switch,381500,Vehicle Mgt Parts
South Lakeland District Council,http://opendatacommunities.org/id/district-council/south-lakeland,31/08/2015,Business Support Community Services,Internal Trading Accounts,,K S INTERNATIONAL LTD,2703321,05/08/2015,51433,230,0,Switch,381500,Vehicle Mgt Parts
South Lakeland District Council,http://opendatacommunities.org/id/district-council/south-lakeland,31/08/2015,Business Support Community Services,Internal Trading Accounts,,HYDRAIR TRUCK & TRAILER PARTS LTD,,05/08/2015,51434,193.76,0,Wear indicators,381500,Vehicle Mgt Parts
South Lakeland District Council,http://opendatacommunities.org/id/district-council/south-lakeland,31/08/2015,Business Support Community Services,Internal Trading Accounts,,HYDRAIR TRUCK & TRAILER PARTS LTD,,05/08/2015,51435,96.88,0,Wear indicators,381500,Vehicle Mgt Parts
South Lakeland District Council,http://opendatacommunities.org/id/district-council/south-lakeland,31/08/2015,Business Support Community Services,Internal Trading Accounts,,HYDRAIR TRUCK & TRAILER PARTS LTD,,05/08/2015,51436,93.01,0,Wear indicators,381500,Vehicle Mgt Parts
South Lakeland District Council,http://opendatacommunities.org/id/district-council/south-lakeland,31/08/2015,Business Support Community Services,Internal Trading Accounts,,C T HAYTON LTD,1212766,05/08/2015,51437,21.92,0,Shackles,391200,Construction Engineering
South Lakeland District Council,http://opendatacommunities.org/id/district-council/south-lakeland,31/08/2015,ICT Group,Central Services,http://opendatacommunities.org/def/concept/finance/sercop/objective/102,Forge Training,,05/08/2015,51438,"1,935.00",0,"Windows Server 2012 training, 14, 15,",261500,HR Training & Conferences
South Lakeland District Council,http://opendatacommunities.org/id/district-council/south-lakeland,31/08/2015,ICT Group,Central Services,http://opendatacommunities.org/def/concept/finance/sercop/objective/102,Forge Training,,05/08/2015,51438,645,0,"Windows Server 2012 training, 14, 15,",261500,HR Training & Conferences
South Lakeland District Council,http://opendatacommunities.org/id/district-council/south-lakeland,31/08/2015,Social Enterprise Admin,Highways & Transport Services,http://opendatacommunities.org/def/concept/finance/sercop/objective/107,NPS NORTH WEST LTD,6614601,10/08/2015,51439,"1,000.00",0,Draft contingency plan for the,391110,Construction Buildings Construction
South Lakeland District Council,http://opendatacommunities.org/id/district-council/south-lakeland,31/08/2015,Environment and Housing,Housing Services,http://opendatacommunities.org/def/concept/finance/sercop/objective/108,NPS NORTH WEST LTD,6614601,05/08/2015,51440,951.53,0,Town View Fields Feasibility study for,391110,Construction Buildings Construction
South Lakeland District Council,http://opendatacommunities.org/id/district-council/south-lakeland,31/08/2015,Social Enterprise Admin,Transport,http://opendatacommunities.org/def/concept/finance/sercop/objective/107,NPS NORTH WEST LTD,6614601,17/08/2015,51441,"1,200.00",0,The extension for the existing,391110,Construction Buildings Construction
South Lakeland District Council,http://opendatacommunities.org/id/district-council/south-lakeland,31/08/2015,Social Enterprise Admin,Culture and Related Serv,http://opendatacommunities.org/def/concept/finance/sercop/objective/104,NPS NORTH WEST LTD,6614601,17/08/2015,51442,"1,000.00",0,Fee proposal and details from the QS to,391110,Construction Buildings Construction
South Lakeland District Council,http://opendatacommunities.org/id/district-council/south-lakeland,31/08/2015,Revenues and Benefits,Central Services,http://opendatacommunities.org/def/concept/finance/sercop/objective/102,TAMESIDE METROPOLITAN BOROUGH,,05/08/2015,51444,196.6,0,2015-2016   NAFN credit and other,202100,Financial Services Subscriptions
South Lakeland District Council,http://opendatacommunities.org/id/district-council/south-lakeland,31/08/2015,Social Enterprise Admin,Cultural Environmental Regulatory & Planning Services,http://opendatacommunities.org/def/concept/finance/sercop/objective/104,CAPITA SYMONDS LTD,3173410,05/08/2015,51445,"2,551.92",0,ARBORICULTURE SERVICES,390000,Construction
South Lakeland District Council,http://opendatacommunities.org/id/district-council/south-lakeland,31/08/2015,Social Enterprise Admin,Cultural Environmental Regulatory & Planning Services,http://opendatacommunities.org/def/concept/finance/sercop/objective/104,CAPITA SYMONDS LTD,3173410,05/08/2015,51445,"1,701.28",0,ARBORICULTURE SERVICES,390000,Construction
South Lakeland District Council,http://opendatacommunities.org/id/district-council/south-lakeland,31/08/2015,Legal Services,Cultural Environmental Regulatory & Planning Services,http://opendatacommunities.org/def/concept/finance/sercop/objective/104,W MCCLURE LTD,685360,05/08/2015,51446,155.4,0,10 x boxes of Foxes Favourites Biscuits,111200,Catering Food & Beverages
South Lakeland District Council,http://opendatacommunities.org/id/district-council/south-lakeland,31/08/2015,Business Support Community Services,Cultural Environmental Regulatory & Planning Services,http://opendatacommunities.org/def/concept/finance/sercop/objective/104,MILNTHORPE KENNELS & CATTERY,8932302,05/08/2015,51447,"2,541.67",0,Stray Dog Service 2015-16,181500,Environment Animal Services
South Lakeland District Council,http://opendatacommunities.org/id/district-council/south-lakeland,31/08/2015,Social Enterprise Admin,Highways & Transport Services,http://opendatacommunities.org/def/concept/finance/sercop/objective/107,NORTHGATE VEHICLE HIRE LTD,1434157,05/08/2015,51448,384.4,0,To hire two vans for 30 days as,381600,Vehicle Mgt Leasing
South Lakeland District Council,http://opendatacommunities.org/id/district-council/south-lakeland,31/08/2015,Social Enterprise Admin,Highways & Transport Services,http://opendatacommunities.org/def/concept/finance/sercop/objective/107,NORTHGATE VEHICLE HIRE LTD,1434157,05/08/2015,51449,384.4,0,To hire two vans for 30 days as,381600,Vehicle Mgt Leasing
South Lakeland District Council,http://opendatacommunities.org/id/district-council/south-lakeland,31/08/2015,Social Enterprise Admin,Highways & Transport Services,http://opendatacommunities.org/def/concept/finance/sercop/objective/107,CONTINENTAL LANDSCAPES LTD,2108452,05/08/2015,51450,12,0,Ground maitemance contract 2015 - 2016,391310,Construction Open Spaces Construction
South Lakeland District Council,http://opendatacommunities.org/id/district-council/south-lakeland,31/08/2015,Social Enterprise Admin,Highways & Transport Services,http://opendatacommunities.org/def/concept/finance/sercop/objective/107,CONTINENTAL LANDSCAPES LTD,2108452,05/08/2015,51450,12,0,Ground maitemance contract 2015 - 2016,391310,Construction Open Spaces Construction
South Lakeland District Council,http://opendatacommunities.org/id/district-council/south-lakeland,31/08/2015,Social Enterprise Admin,Highways & Transport Services,http://opendatacommunities.org/def/concept/finance/sercop/objective/107,CONTINENTAL LANDSCAPES LTD,2108452,05/08/2015,51450,1.2,0,Ground maitemance contract 2015 - 2016,391310,Construction Open Spaces Construction
South Lakeland District Council,http://opendatacommunities.org/id/district-council/south-lakeland,31/08/2015,Social Enterprise Admin,Highways & Transport Services,http://opendatacommunities.org/def/concept/finance/sercop/objective/107,CONTINENTAL LANDSCAPES LTD,2108452,05/08/2015,51450,12,0,Ground maitemance contract 2015 - 2016,391310,Construction Open Spaces Construction
South Lakeland District Council,http://opendatacommunities.org/id/district-council/south-lakeland,31/08/2015,Social Enterprise Admin,Highways & Transport Services,http://opendatacommunities.org/def/concept/finance/sercop/objective/107,CONTINENTAL LANDSCAPES LTD,2108452,05/08/2015,51450,12,0,Ground maitemance contract 2015 - 2016,391310,Construction Open Spaces Construction
South Lakeland District Council,http://opendatacommunities.org/id/district-council/south-lakeland,31/08/2015,Social Enterprise Admin,Highways & Transport Services,http://opendatacommunities.org/def/concept/finance/sercop/objective/107,CONTINENTAL LANDSCAPES LTD,2108452,05/08/2015,51450,12,0,Ground maitemance contract 2015 - 2016,391310,Construction Open Spaces Construction
South Lakeland District Council,http://opendatacommunities.org/id/district-council/south-lakeland,31/08/2015,Social Enterprise Admin,Highways & Transport Services,http://opendatacommunities.org/def/concept/finance/sercop/objective/107,CONTINENTAL LANDSCAPES LTD,2108452,05/08/2015,51450,35.99,0,Ground maitemance contract 2015 - 2016,391310,Construction Open Spaces Construction
South Lakeland District Council,http://opendatacommunities.org/id/district-council/south-lakeland,31/08/2015,Social Enterprise Admin,Highways & Transport Services,http://opendatacommunities.org/def/concept/finance/sercop/objective/107,CONTINENTAL LANDSCAPES LTD,2108452,05/08/2015,51450,239.94,0,Ground maitemance contract 2015 - 2016,391310,Construction Open Spaces Construction
South Lakeland District Council,http://opendatacommunities.org/id/district-council/south-lakeland,31/08/2015,Social Enterprise Admin,Highways & Transport Services,http://opendatacommunities.org/def/concept/finance/sercop/objective/107,CONTINENTAL LANDSCAPES LTD,2108452,05/08/2015,51450,149.96,0,Ground maitemance contract 2015 - 2016,391310,Construction Open Spaces Construction
South Lakeland District Council,http://opendatacommunities.org/id/district-council/south-lakeland,31/08/2015,Social Enterprise Admin,Highways & Transport Services,http://opendatacommunities.org/def/concept/finance/sercop/objective/107,CONTINENTAL LANDSCAPES LTD,2108452,05/08/2015,51450,6,0,Ground maitemance contract 2015 - 2016,391310,Construction Open Spaces Construction
South Lakeland District Council,http://opendatacommunities.org/id/district-council/south-lakeland,31/08/2015,Social Enterprise Admin,Highways & Transport Services,http://opendatacommunities.org/def/concept/finance/sercop/objective/107,CONTINENTAL LANDSCAPES LTD,2108452,05/08/2015,51450,59.98,0,Ground maitemance contract 2015 - 2016,391310,Construction Open Spaces Construction
South Lakeland District Council,http://opendatacommunities.org/id/district-council/south-lakeland,31/08/2015,Social Enterprise Admin,Highways & Transport Services,http://opendatacommunities.org/def/concept/finance/sercop/objective/107,CONTINENTAL LANDSCAPES LTD,2108452,05/08/2015,51450,59.98,0,Ground maitemance contract 2015 - 2016,391310,Construction Open Spaces Construction
South Lakeland District Council,http://opendatacommunities.org/id/district-council/south-lakeland,31/08/2015,Social Enterprise Admin,Highways & Transport Services,http://opendatacommunities.org/def/concept/finance/sercop/objective/107,CONTINENTAL LANDSCAPES LTD,2108452,05/08/2015,51450,119.97,0,Ground maitemance contract 2015 - 2016,391310,Construction Open Spaces Construction
South Lakeland District Council,http://opendatacommunities.org/id/district-council/south-lakeland,31/08/2015,Social Enterprise Admin,Highways & Transport Services,http://opendatacommunities.org/def/concept/finance/sercop/objective/107,CONTINENTAL LANDSCAPES LTD,2108452,05/08/2015,51450,47.99,0,Ground maitemance contract 2015 - 2016,391310,Construction Open Spaces Construction
South Lakeland District Council,http://opendatacommunities.org/id/district-council/south-lakeland,31/08/2015,Social Enterprise Admin,Highways & Transport Services,http://opendatacommunities.org/def/concept/finance/sercop/objective/107,CONTINENTAL LANDSCAPES LTD,2108452,05/08/2015,51450,6,0,Ground maitemance contract 2015 - 2016,391310,Construction Open Spaces Construction
South Lakeland District Council,http://opendatacommunities.org/id/district-council/south-lakeland,31/08/2015,Social Enterprise Admin,Highways & Transport Services,http://opendatacommunities.org/def/concept/finance/sercop/objective/107,CONTINENTAL LANDSCAPES LTD,2108452,05/08/2015,51450,6,0,Ground maitemance contract 2015 - 2016,391310,Construction Open Spaces Construction
South Lakeland District Council,http://opendatacommunities.org/id/district-council/south-lakeland,31/08/2015,Social Enterprise Admin,Highways & Transport Services,http://opendatacommunities.org/def/concept/finance/sercop/objective/107,CONTINENTAL LANDSCAPES LTD,2108452,05/08/2015,51450,3,0,Ground maitemance contract 2015 - 2016,391310,Construction Open Spaces Construction
South Lakeland District Council,http://opendatacommunities.org/id/district-council/south-lakeland,31/08/2015,Social Enterprise Admin,Highways & Transport Services,http://opendatacommunities.org/def/concept/finance/sercop/objective/107,CONTINENTAL LANDSCAPES LTD,2108452,05/08/2015,51450,59.98,0,Ground maitemance contract 2015 - 2016,391310,Construction Open Spaces Construction
South Lakeland District Council,http://opendatacommunities.org/id/district-council/south-lakeland,31/08/2015,Social Enterprise Admin,Highways & Transport Services,http://opendatacommunities.org/def/concept/finance/sercop/objective/107,CONTINENTAL LANDSCAPES LTD,2108452,05/08/2015,51450,53.99,0,Ground maitemance contract 2015 - 2016,391310,Construction Open Spaces Construction
South Lakeland District Council,http://opendatacommunities.org/id/district-council/south-lakeland,31/08/2015,Social Enterprise Admin,Highways & Transport Services,http://opendatacommunities.org/def/concept/finance/sercop/objective/107,CONTINENTAL LANDSCAPES LTD,2108452,05/08/2015,51450,65.98,0,Ground maitemance contract 2015 - 2016,391310,Construction Open Spaces Construction
South Lakeland District Council,http://opendatacommunities.org/id/district-council/south-lakeland,31/08/2015,Social Enterprise Admin,Highways & Transport Services,http://opendatacommunities.org/def/concept/finance/sercop/objective/107,CONTINENTAL LANDSCAPES LTD,2108452,05/08/2015,51450,125.97,0,Ground maitemance contract 2015 - 2016,391310,Construction Open Spaces Construction
South Lakeland District Council,http://opendatacommunities.org/id/district-council/south-lakeland,31/08/2015,Social Enterprise Admin,Highways & Transport Services,http://opendatacommunities.org/def/concept/finance/sercop/objective/107,CONTINENTAL LANDSCAPES LTD,2108452,05/08/2015,51450,119.97,0,Ground maitemance contract 2015 - 2016,391310,Construction Open Spaces Construction
South Lakeland District Council,http://opendatacommunities.org/id/district-council/south-lakeland,31/08/2015,Social Enterprise Admin,Highways & Transport Services,http://opendatacommunities.org/def/concept/finance/sercop/objective/107,CONTINENTAL LANDSCAPES LTD,2108452,05/08/2015,51450,12,0,Ground maitemance contract 2015 - 2016,391310,Construction Open Spaces Construction
South Lakeland District Council,http://opendatacommunities.org/id/district-council/south-lakeland,31/08/2015,Social Enterprise Admin,Highways & Transport Services,http://opendatacommunities.org/def/concept/finance/sercop/objective/107,CONTINENTAL LANDSCAPES LTD,2108452,05/08/2015,51450,12,0,Ground maitemance contract 2015 - 2016,391310,Construction Open Spaces Construction
South Lakeland District Council,http://opendatacommunities.org/id/district-council/south-lakeland,31/08/2015,Social Enterprise Admin,Highways & Transport Services,http://opendatacommunities.org/def/concept/finance/sercop/objective/107,CONTINENTAL LANDSCAPES LTD,2108452,05/08/2015,51450,36.05,0,Ground maitemance contract 2015 - 2016,391310,Construction Open Spaces Construction
South Lakeland District Council,http://opendatacommunities.org/id/district-council/south-lakeland,31/08/2015,Social Enterprise Admin,Highways & Transport Services,http://opendatacommunities.org/def/concept/finance/sercop/objective/107,CONTINENTAL LANDSCAPES LTD,2108452,05/08/2015,51450,59.98,0,Ground maitemance contract 2015 - 2016,391310,Construction Open Spaces Construction
South Lakeland District Council,http://opendatacommunities.org/id/district-council/south-lakeland,31/08/2015,Social Enterprise Admin,Highways & Transport Services,http://opendatacommunities.org/def/concept/finance/sercop/objective/107,CONTINENTAL LANDSCAPES LTD,2108452,05/08/2015,51450,106.71,0,Ground maitemance contract 2015 - 2016,391310,Construction Open Spaces Construction
South Lakeland District Council,http://opendatacommunities.org/id/district-council/south-lakeland,31/08/2015,Social Enterprise Admin,Highways & Transport Services,http://opendatacommunities.org/def/concept/finance/sercop/objective/107,CONTINENTAL LANDSCAPES LTD,2108452,05/08/2015,51450,119.97,0,Ground maitemance contract 2015 - 2016,391310,Construction Open Spaces Construction
South Lakeland District Council,http://opendatacommunities.org/id/district-council/south-lakeland,31/08/2015,Social Enterprise Admin,Highways & Transport Services,http://opendatacommunities.org/def/concept/finance/sercop/objective/107,CONTINENTAL LANDSCAPES LTD,2108452,05/08/2015,51450,221.94,0,Ground maitemance contract 2015 - 2016,391310,Construction Open Spaces Construction
South Lakeland District Council,http://opendatacommunities.org/id/district-council/south-lakeland,31/08/2015,Social Enterprise Admin,Highways & Transport Services,http://opendatacommunities.org/def/concept/finance/sercop/objective/107,CONTINENTAL LANDSCAPES LTD,2108452,05/08/2015,51450,119.97,0,Ground maitemance contract 2015 - 2016,391310,Construction Open Spaces Construction
South Lakeland District Council,http://opendatacommunities.org/id/district-council/south-lakeland,31/08/2015,Social Enterprise Admin,Highways & Transport Services,http://opendatacommunities.org/def/concept/finance/sercop/objective/107,CONTINENTAL LANDSCAPES LTD,2108452,05/08/2015,51450,179.95,0,Ground maitemance contract 2015 - 2016,391310,Construction Open Spaces Construction
South Lakeland District Council,http://opendatacommunities.org/id/district-council/south-lakeland,31/08/2015,Social Enterprise Admin,Cultural Environmental Regulatory & Planning Services,http://opendatacommunities.org/def/concept/finance/sercop/objective/104,CONTINENTAL LANDSCAPES LTD,2108452,05/08/2015,51450,"9,597.41",0,Ground maitemance contract 2015 - 2016,391310,Construction Open Spaces Construction
South Lakeland District Council,http://opendatacommunities.org/id/district-council/south-lakeland,31/08/2015,Social Enterprise Admin,Cultural Environmental Regulatory & Planning Services,http://opendatacommunities.org/def/concept/finance/sercop/objective/104,CONTINENTAL LANDSCAPES LTD,2108452,05/08/2015,51450,"1,388.96",0,Ground maitemance contract 2015 - 2016,391310,Construction Open Spaces Construction
South Lakeland District Council,http://opendatacommunities.org/id/district-council/south-lakeland,31/08/2015,Social Enterprise Admin,Cultural Environmental Regulatory & Planning Services,http://opendatacommunities.org/def/concept/finance/sercop/objective/104,CONTINENTAL LANDSCAPES LTD,2108452,05/08/2015,51450,23.99,0,Ground maitemance contract 2015 - 2016,391310,Construction Open Spaces Construction
South Lakeland District Council,http://opendatacommunities.org/id/district-council/south-lakeland,31/08/2015,Social Enterprise Admin,Cultural Environmental Regulatory & Planning Services,http://opendatacommunities.org/def/concept/finance/sercop/objective/104,CONTINENTAL LANDSCAPES LTD,2108452,05/08/2015,51450,"44,527.71",0,Ground maitemance contract 2015 - 2016,391310,Construction Open Spaces Construction
South Lakeland District Council,http://opendatacommunities.org/id/district-council/south-lakeland,31/08/2015,Social Enterprise Admin,Cultural Environmental Regulatory & Planning Services,http://opendatacommunities.org/def/concept/finance/sercop/objective/104,CONTINENTAL LANDSCAPES LTD,2108452,05/08/2015,51450,359.9,0,Ground maitemance contract 2015 - 2016,391310,Construction Open Spaces Construction
South Lakeland District Council,http://opendatacommunities.org/id/district-council/south-lakeland,31/08/2015,Social Enterprise Admin,Cultural Environmental Regulatory & Planning Services,http://opendatacommunities.org/def/concept/finance/sercop/objective/104,CONTINENTAL LANDSCAPES LTD,2108452,05/08/2015,51450,"2,279.38",0,Ground maitemance contract 2015 - 2016,391310,Construction Open Spaces Construction
South Lakeland District Council,http://opendatacommunities.org/id/district-council/south-lakeland,31/08/2015,Social Enterprise Admin,External Trading Accounts,,CONTINENTAL LANDSCAPES LTD,2108452,05/08/2015,51450,104.97,0,Ground maitemance contract 2015 - 2016,391310,Construction Open Spaces Construction
South Lakeland District Council,http://opendatacommunities.org/id/district-council/south-lakeland,31/08/2015,Lake Wardens,Cultural Environmental Regulatory & Planning Services,http://opendatacommunities.org/def/concept/finance/sercop/objective/104,THOMAS GRAHAM & SONS (IRON & STEEL) LTD,656879,12/08/2015,51451,78.41,0,2 x Boxes of Stainless Steel Screws -,101400,Building General Materials
South Lakeland District Council,http://opendatacommunities.org/id/district-council/south-lakeland,31/08/2015,Lake Wardens,Cultural Environmental Regulatory & Planning Services,http://opendatacommunities.org/def/concept/finance/sercop/objective/104,THOMAS GRAHAM & SONS (IRON & STEEL) LTD,656879,12/08/2015,51451,8.2,0,2 x Boxes of Stainless Steel Screws -,101400,Building General Materials
South Lakeland District Council,http://opendatacommunities.org/id/district-council/south-lakeland,31/08/2015,Lake Wardens,Cultural Environmental Regulatory & Planning Services,http://opendatacommunities.org/def/concept/finance/sercop/objective/104,THOMAS GRAHAM & SONS (IRON & STEEL) LTD,656879,12/08/2015,51451,38.88,0,2 x Boxes of Stainless Steel Screws -,101400,Building General Materials
South Lakeland District Council,http://opendatacommunities.org/id/district-council/south-lakeland,31/08/2015,Lake Wardens,Internal Trading Accounts,,THOMAS GRAHAM & SONS (IRON & STEEL) LTD,656879,12/08/2015,51451,69.83,0,2 x Boxes of Stainless Steel Screws -,101400,Building General Materials
South Lakeland District Council,http://opendatacommunities.org/id/district-council/south-lakeland,31/08/2015,Business Support Community Services,Cultural Environmental Regulatory & Planning Services,http://opendatacommunities.org/def/concept/finance/sercop/objective/104,MOGO UK,3091301,17/08/2015,51457,602.9,0,PO for order of Hackney & Private Hire,281400,Legal Services Specialist Support
South Lakeland District Council,http://opendatacommunities.org/id/district-council/south-lakeland,31/08/2015,Social Enterprise Admin,Cultural Environmental Regulatory & Planning Services,http://opendatacommunities.org/def/concept/finance/sercop/objective/104,NEWSQUEST MEDIA GROUP LTD,3102566,10/08/2015,51458,113,0,PUBLIC NOTICES FOR PLANNING 1 APRIL - 31,191000,Facilities Advertising
South Lakeland District Council,http://opendatacommunities.org/id/district-council/south-lakeland,31/08/2015,Business Support Community Services,Internal Trading Accounts,,ARCO LIMITED,133804,05/08/2015,51460,5.63,0,PPE 2015/16,141100,Clothing Protective
South Lakeland District Council,http://opendatacommunities.org/id/district-council/south-lakeland,31/08/2015,Human Resources,Central Services,http://opendatacommunities.org/def/concept/finance/sercop/objective/102,WESTMORLAND COUNTY AGRICULTURAL SOCIETY,3146325,05/08/2015,51461,226,0,Kendal Room 09:30 until 15:30 14/07/2015,261500,HR Training & Conferences
South Lakeland District Council,http://opendatacommunities.org/id/district-council/south-lakeland,31/08/2015,Business Support Community Services,Internal Trading Accounts,,GARWOOD EUROPE LTD,4333504,10/08/2015,51462,273.5,0,Filters,182011,Environment Waste Management Consumables
South Lakeland District Council,http://opendatacommunities.org/id/district-council/south-lakeland,31/08/2015,Business Support Community Services,Internal Trading Accounts,,GARWOOD EUROPE LTD,4333504,10/08/2015,51463,109.65,0,Switch,182011,Environment Waste Management Consumables
South Lakeland District Council,http://opendatacommunities.org/id/district-council/south-lakeland,31/08/2015,Democratic Services,Central Services,http://opendatacommunities.org/def/concept/finance/sercop/objective/102,KENDAL COLLEGE,,10/08/2015,51464,200,0,Room hire Policy Away Day July 2015,908999,Public Bodies Not Elsewhere Classified
South Lakeland District Council,http://opendatacommunities.org/id/district-council/south-lakeland,31/08/2015,Democratic Services,Central Services,http://opendatacommunities.org/def/concept/finance/sercop/objective/102,KENDAL COLLEGE,,10/08/2015,51464,127.5,0,Room hire Policy Away Day July 2015,908999,Public Bodies Not Elsewhere Classified
South Lakeland District Council,http://opendatacommunities.org/id/district-council/south-lakeland,31/08/2015,Development Strategy,Central Services,http://opendatacommunities.org/def/concept/finance/sercop/objective/102,CUMBRIA COUNTY COUNCIL,,05/08/2015,51465,400,0,CPTS - training scheme contribution for,908000,Public Bodies Council support services
South Lakeland District Council,http://opendatacommunities.org/id/district-council/south-lakeland,31/08/2015,Social Enterprise Admin,Cultural Environmental Regulatory & Planning Services,http://opendatacommunities.org/def/concept/finance/sercop/objective/104,HAGS-SMP Ltd,908021,05/08/2015,51467,100,0,2 x item 8018620 - old type Mobilus seat,331000,Sports Playground Equipment
South Lakeland District Council,http://opendatacommunities.org/id/district-council/south-lakeland,31/08/2015,Social Enterprise Admin,Central Services,http://opendatacommunities.org/def/concept/finance/sercop/objective/102,HYGIENE CLEANING SUPPLIES LTD,4753934,17/08/2015,51470,212.57,0,Jangro c fold hand towels  blue AE115,131011,Cleaning & Janitorial Cleaning Materials
South Lakeland District Council,http://opendatacommunities.org/id/district-council/south-lakeland,31/08/2015,Human Resources,Central Services,http://opendatacommunities.org/def/concept/finance/sercop/objective/102,IMPROVEMENT DEVELOPMENT GROWTH T/A IDG,4141322,05/08/2015,51471,"3,987.50",0,IIP Standard Assessment 15-17 July 2015,202100,Financial Services Subscriptions
South Lakeland District Council,http://opendatacommunities.org/id/district-council/south-lakeland,31/08/2015,Human Resources,Central Services,http://opendatacommunities.org/def/concept/finance/sercop/objective/102,FORBES SOLICITORS,,05/08/2015,51472,306.5,0,General Legal Advice,281300,Legal Services Legal Opinion
South Lakeland District Council,http://opendatacommunities.org/id/district-council/south-lakeland,31/08/2015,Social Enterprise Admin,Highways & Transport Services,http://opendatacommunities.org/def/concept/finance/sercop/objective/107,ALLSTAR BUSINESS SOLUTIONS LTD (NCR),2631112,19/08/2015,51473,276.93,0,Fuel for car parks' vehicles starting 1,381600,Vehicle Mgt Leasing
South Lakeland District Council,http://opendatacommunities.org/id/district-council/south-lakeland,31/08/2015,Social Enterprise Admin,Cultural Environmental Regulatory & Planning Services,http://opendatacommunities.org/def/concept/finance/sercop/objective/104,ALLSTAR BUSINESS SOLUTIONS LTD (NCR),2631112,19/08/2015,51474,141.97,0,parks fuel,381600,Vehicle Mgt Leasing
South Lakeland District Council,http://opendatacommunities.org/id/district-council/south-lakeland,31/08/2015,Revenues and Benefits,Central Services,http://opendatacommunities.org/def/concept/finance/sercop/objective/102,BADENOCH & CLARK,1356186,05/08/2015,51475,533.4,0,Revs and Bens May 2015,261300,HR Recruitment & Assessment
South Lakeland District Council,http://opendatacommunities.org/id/district-council/south-lakeland,31/08/2015,Development Implementation,Cultural Environmental Regulatory & Planning Services,http://opendatacommunities.org/def/concept/finance/sercop/objective/104,PS BUSINESS MATTERS,8147185,05/08/2015,51476,"2,000.00",0,Kendal Futures Programme Support,151900,Consultancy Management
South Lakeland District Council,http://opendatacommunities.org/id/district-council/south-lakeland,31/08/2015,Business Support Community Services,Internal Trading Accounts,,TECHNIJET LTD,2776601,05/08/2015,51477,142.95,0,Service & repair pressure washers,139999,Cleaning & Janitorial Not Elsewhere Clas
South Lakeland District Council,http://opendatacommunities.org/id/district-council/south-lakeland,31/08/2015,Business Support Community Services,Internal Trading Accounts,,RIBBLESDALE AUTO ELECTRICS 1992 LTD,2732686,05/08/2015,51478,65.8,0,Lamps,381500,Vehicle Mgt Parts
South Lakeland District Council,http://opendatacommunities.org/id/district-council/south-lakeland,31/08/2015,Business Support Community Services,Internal Trading Accounts,,HAKO MACHINES LIMITED,1414225,05/08/2015,51479,"5,043.99",0,Hire of KP63 WXW 01/08/15 - 31/10/15,131000,Cleaning & Janitorial Cleaning Materials
South Lakeland District Council,http://opendatacommunities.org/id/district-council/south-lakeland,31/08/2015,Business Support Community Services,Internal Trading Accounts,,C T HAYTON LTD,1212766,05/08/2015,51480,5.05,0,24mm fitting,391200,Construction Engineering
South Lakeland District Council,http://opendatacommunities.org/id/district-council/south-lakeland,31/08/2015,Business Support Community Services,Internal Trading Accounts,,ARCO LIMITED,133804,05/08/2015,51481,33.78,0,PPE 2015/16,141100,Clothing Protective
South Lakeland District Council,http://opendatacommunities.org/id/district-council/south-lakeland,31/08/2015,Development Management,Cultural Environmental Regulatory & Planning Services,http://opendatacommunities.org/def/concept/finance/sercop/objective/104,Ronnie Haddow Chimney Services,,05/08/2015,51483,200,0,Checking of Stoves in connection with,131310,Cleaning & Janitorial Cleaning Service
South Lakeland District Council,http://opendatacommunities.org/id/district-council/south-lakeland,31/08/2015,Lake Wardens,SLDC as Agent,,LAKE DISTRICT NATIONAL PARK AUTHORITY,,10/08/2015,51484,"2,900.21",0,Monthly Invoices for 2015/2016 for boat,201700,Financial Services Grants
South Lakeland District Council,http://opendatacommunities.org/id/district-council/south-lakeland,31/08/2015,Business Support Community Services,Transport Planning Policy,http://opendatacommunities.org/def/concept/finance/sercop/objective/107,KENDAL SECURITY CENTRE LTD,3179893,10/08/2015,51486,110,0,Keys,192212,Facilities Security Equipment
South Lakeland District Council,http://opendatacommunities.org/id/district-council/south-lakeland,31/08/2015,Business Support Community Services,Transport Planning Policy,http://opendatacommunities.org/def/concept/finance/sercop/objective/107,KENDAL SECURITY CENTRE LTD,3179893,10/08/2015,51486,224.66,0,Keys,192212,Facilities Security Equipment
South Lakeland District Council,http://opendatacommunities.org/id/district-council/south-lakeland,31/08/2015,Development Implementation,Cultural Environmental Regulatory & Planning Services,http://opendatacommunities.org/def/concept/finance/sercop/objective/104,NEWSCO INSIDER LTD,2709518,05/08/2015,51488,"2,295.00",0,Insider loose inserts.,191000,Facilities Advertising
South Lakeland District Council,http://opendatacommunities.org/id/district-council/south-lakeland,31/08/2015,Development Implementation,Cultural Environmental Regulatory & Planning Services,http://opendatacommunities.org/def/concept/finance/sercop/objective/104,WiFi Spark Ltd,,05/08/2015,51489,402.18,0,Kendal Town Centre Wifi - 12 months,271800,ICT Telecommunications Mobile
South Lakeland District Council,http://opendatacommunities.org/id/district-council/south-lakeland,31/08/2015,Development Implementation,Cultural Environmental Regulatory & Planning Services,http://opendatacommunities.org/def/concept/finance/sercop/objective/104,SUN SIGNS,4413045,05/08/2015,51491,150,0,Revised Commercial Signage Boards for,102400,Building Signage
South Lakeland District Council,http://opendatacommunities.org/id/district-council/south-lakeland,31/08/2015,Development Implementation,Cultural Environmental Regulatory & Planning Services,http://opendatacommunities.org/def/concept/finance/sercop/objective/104,SUN SIGNS,4413045,05/08/2015,51492,150,0,Commercial boards for 124 Highgate.,102400,Building Signage
South Lakeland District Council,http://opendatacommunities.org/id/district-council/south-lakeland,31/08/2015,ICT Group,Transport Planning Policy,http://opendatacommunities.org/def/concept/finance/sercop/objective/107,PROBRAND LTD,2653446,17/08/2015,51494,199.06,0,AZ461/65258978AF01- A00 Adobe - TLPG,271600,ICT Software Customised & Bespoke
South Lakeland District Council,http://opendatacommunities.org/id/district-council/south-lakeland,31/08/2015,Business Support Community Services,Housing Services,http://opendatacommunities.org/def/concept/finance/sercop/objective/108,James Andrews Recruitment Solutions,6834852,10/08/2015,51495,912.5,0,Payment for - Housing,261400,HR Temporary & Agency Staff
South Lakeland District Council,http://opendatacommunities.org/id/district-council/south-lakeland,31/08/2015,Kendal Town Hall,Cultural Environmental Regulatory & Planning Services,http://opendatacommunities.org/def/concept/finance/sercop/objective/104,SICO EUROPE LIMITED,902613,10/08/2015,51496,850.67,0,Stage maintenance agreement for,219999,Furniture Not Elsewhere Classified
South Lakeland District Council,http://opendatacommunities.org/id/district-council/south-lakeland,31/08/2015,Kendal Town Hall,Central Services,http://opendatacommunities.org/def/concept/finance/sercop/objective/102,BERENDSEN UK LTD,228604,10/08/2015,51497,81.08,0,Rental and weekly replacement of the 2,161000,Domestic Goods Commercial
South Lakeland District Council,http://opendatacommunities.org/id/district-council/south-lakeland,31/08/2015,Kendal Town Hall,Cultural Environmental Regulatory & Planning Services,http://opendatacommunities.org/def/concept/finance/sercop/objective/104,BERENDSEN UK LTD,228604,10/08/2015,51497,31,0,Rental and weekly replacement of the 2,161000,Domestic Goods Commercial
South Lakeland District Council,http://opendatacommunities.org/id/district-council/south-lakeland,31/08/2015,Social Enterprise Admin,Central Services,http://opendatacommunities.org/def/concept/finance/sercop/objective/102,MARGARET BARROW INTERIORS LTD T/A MBI,,24/08/2015,51498,140,0,1 x chair T106HA Black Havana,211200,Furniture & Soft Furn Office Furniture
South Lakeland District Council,http://opendatacommunities.org/id/district-council/south-lakeland,31/08/2015,Business Support Community Services,Internal Trading Accounts,,SOLWAY DAF,1393710,10/08/2015,51501,162,0,u bolt,381000,Vehicle Mgt Commercial
South Lakeland District Council,http://opendatacommunities.org/id/district-council/south-lakeland,31/08/2015,Business Support Community Services,Internal Trading Accounts,,SOLWAY DAF,1393710,10/08/2015,51502,162,0,u bolt,381000,Vehicle Mgt Commercial
South Lakeland District Council,http://opendatacommunities.org/id/district-council/south-lakeland,31/08/2015,Social Enterprise Admin,Central Services,http://opendatacommunities.org/def/concept/finance/sercop/objective/102,HYGIENE CLEANING SUPPLIES LTD,4753934,19/08/2015,51504,45.1,0,Jangro nitrile disposable gloves -,131011,Cleaning & Janitorial Cleaning Materials
South Lakeland District Council,http://opendatacommunities.org/id/district-council/south-lakeland,31/08/2015,Lake Wardens,SLDC as Agent,,LAKE DISTRICT NATIONAL PARK AUTHORITY,,10/08/2015,51507,"1,823.21",0,Monthly Invoices for 2015/2016 for boat,201700,Financial Services Grants
South Lakeland District Council,http://opendatacommunities.org/id/district-council/south-lakeland,31/08/2015,Lake Wardens,Cultural Environmental Regulatory & Planning Services,http://opendatacommunities.org/def/concept/finance/sercop/objective/104,SMS (SALCOMBE) LTD,4558962,10/08/2015,51508,19.65,0,1 Metre Length of Clear 45mm ID Hose.,381500,Vehicle Mgt Parts
South Lakeland District Council,http://opendatacommunities.org/id/district-council/south-lakeland,31/08/2015,Coronation Hall,Cultural Environmental Regulatory & Planning Services,http://opendatacommunities.org/def/concept/finance/sercop/objective/104,CATER-KWIK,8782836,10/08/2015,51509,53.97,0,CK0022 Glasswash detergent 4 x 5ltr,391111,Construction Buildings Repair & Mtce
South Lakeland District Council,http://opendatacommunities.org/id/district-council/south-lakeland,31/08/2015,Coronation Hall,External Trading Accounts,,SHORROCK TRICHEM,4179799,10/08/2015,51510,295.08,0,Toilet rolls mini jumbo 2 ply 12 pack,131312,Cleaning & Janitorial Washroom Sanitat
South Lakeland District Council,http://opendatacommunities.org/id/district-council/south-lakeland,31/08/2015,Coronation Hall,Cultural Environmental Regulatory & Planning Services,http://opendatacommunities.org/def/concept/finance/sercop/objective/104,SHORROCK TRICHEM,4179799,10/08/2015,51510,43.28,0,Toilet rolls mini jumbo 2 ply 12 pack,131312,Cleaning & Janitorial Washroom Sanitat
South Lakeland District Council,http://opendatacommunities.org/id/district-council/south-lakeland,31/08/2015,ICT Group,Central Services,http://opendatacommunities.org/def/concept/finance/sercop/objective/102,MLL Telecom Ltd,2657917,10/08/2015,51515,"1,563.00",0,"New MPLS install cost, South Lakeland",271700,ICT Telecommunications Fixed
South Lakeland District Council,http://opendatacommunities.org/id/district-council/south-lakeland,31/08/2015,ICT Group,Central Services,http://opendatacommunities.org/def/concept/finance/sercop/objective/102,MLL Telecom Ltd,2657917,10/08/2015,51516,"7,925.00",0,"New MPLS install cost, South Lakeland",271700,ICT Telecommunications Fixed
South Lakeland District Council,http://opendatacommunities.org/id/district-council/south-lakeland,31/08/2015,Business Support Community Services,Internal Trading Accounts,,A & W COMMERCIALS LTD,2630625,10/08/2015,51517,212.32,0,Hoses,381400,Vehicle Mgt Maintenance
South Lakeland District Council,http://opendatacommunities.org/id/district-council/south-lakeland,31/08/2015,Development Implementation,Central Services,http://opendatacommunities.org/def/concept/finance/sercop/objective/102,CRUDEN PROPERTY SERVICES LTD,3851237,10/08/2015,51518,"2,930.86",0,"Coronation Hall, Ulverston - all works",391111,Construction Buildings Repair & Mtce
South Lakeland District Council,http://opendatacommunities.org/id/district-council/south-lakeland,31/08/2015,Lake Wardens,Cultural Environmental Regulatory & Planning Services,http://opendatacommunities.org/def/concept/finance/sercop/objective/104,AUTOPARTS (CUMBRIA) LTD,2579204,10/08/2015,51519,145.18,0,2 x 20Ltr drums of 15w/40 Mineral,381500,Vehicle Mgt Parts
South Lakeland District Council,http://opendatacommunities.org/id/district-council/south-lakeland,31/08/2015,Lake Wardens,Cultural Environmental Regulatory & Planning Services,http://opendatacommunities.org/def/concept/finance/sercop/objective/104,AUTOPARTS (CUMBRIA) LTD,2579204,10/08/2015,51519,12.37,0,2 x 20Ltr drums of 15w/40 Mineral,381500,Vehicle Mgt Parts
South Lakeland District Council,http://opendatacommunities.org/id/district-council/south-lakeland,31/08/2015,Electoral Services,Central Services,http://opendatacommunities.org/def/concept/finance/sercop/objective/102,NEWSQUEST MEDIA GROUP LTD,3102566,12/08/2015,51520,145,0,Advert in Westmorland Gazette on,191000,Facilities Advertising
South Lakeland District Council,http://opendatacommunities.org/id/district-council/south-lakeland,31/08/2015,Electoral Services,Central Services,http://opendatacommunities.org/def/concept/finance/sercop/objective/102,NEWSQUEST MEDIA GROUP LTD,3102566,17/08/2015,51521,145,0,Advert in Westmorland Gazette on,191000,Facilities Advertising
South Lakeland District Council,http://opendatacommunities.org/id/district-council/south-lakeland,31/08/2015,Electoral Services,Central Services,http://opendatacommunities.org/def/concept/finance/sercop/objective/102,NEWSQUEST MEDIA GROUP LTD,3102566,17/08/2015,51522,250,0,Advert in Westmorland Gazette on,191000,Facilities Advertising
South Lakeland District Council,http://opendatacommunities.org/id/district-council/south-lakeland,31/08/2015,ICT Group,Central Services,http://opendatacommunities.org/def/concept/finance/sercop/objective/102,CABLE & WIRELESS UK (VODAFONE),,10/08/2015,51524,30.59,0,Call Charges 25/3/15 to 25/3/16,271700,ICT Telecommunications Fixed
South Lakeland District Council,http://opendatacommunities.org/id/district-council/south-lakeland,31/08/2015,Financial Services,Central Services,http://opendatacommunities.org/def/concept/finance/sercop/objective/102,LANCASHIRE COUNTY COUNCIL,,10/08/2015,51525,699,0,Subscriptions Helpline access VAT 15/16,908000,Public Bodies Council support services
South Lakeland District Council,http://opendatacommunities.org/id/district-council/south-lakeland,31/08/2015,Human Resources,Non-Service Payments,,COMPUTERSHARE VOUCHER SERVICES LTD,4968447,10/08/2015,51526,930,0,child care vouchers,202100,Financial Services Subscriptions
South Lakeland District Council,http://opendatacommunities.org/id/district-council/south-lakeland,31/08/2015,Human Resources,Central Services,http://opendatacommunities.org/def/concept/finance/sercop/objective/102,BUSY BEES BENEFITS LTD,6758298,10/08/2015,51527,24.36,0,child care vouchers,202100,Financial Services Subscriptions
South Lakeland District Council,http://opendatacommunities.org/id/district-council/south-lakeland,31/08/2015,Human Resources,Non-Service Payments,,BUSY BEES BENEFITS LTD,6758298,10/08/2015,51528,696,0,child care vouchers,202100,Financial Services Subscriptions
South Lakeland District Council,http://opendatacommunities.org/id/district-council/south-lakeland,31/08/2015,Human Resources,Central Services,http://opendatacommunities.org/def/concept/finance/sercop/objective/102,COMPUTERSHARE VOUCHER SERVICES LTD,4968447,10/08/2015,51529,34.88,0,child care vouchers,202100,Financial Services Subscriptions
South Lakeland District Council,http://opendatacommunities.org/id/district-council/south-lakeland,31/08/2015,Printing Section,Central Services,http://opendatacommunities.org/def/concept/finance/sercop/objective/102,Konica Minolta Bus Solutions (UK) Ltd,,12/08/2015,51530,"4,437.92",0,Konica click charges for office,192000,Facilities Reprographics
South Lakeland District Council,http://opendatacommunities.org/id/district-council/south-lakeland,31/08/2015,Printing Section,Central Services,http://opendatacommunities.org/def/concept/finance/sercop/objective/102,Konica Minolta Bus Solutions (UK) Ltd,,10/08/2015,51531,"4,351.56",0,Lease for Konica Office Printers 1st,192000,Facilities Reprographics
South Lakeland District Council,http://opendatacommunities.org/id/district-council/south-lakeland,31/08/2015,Printing Section,Central Services,http://opendatacommunities.org/def/concept/finance/sercop/objective/102,TOSHIBA TEC UK IMAGING SYSTEMS LTD,4124726,12/08/2015,51532,"1,890.00",0,Click charges for print room 1st quarter,271600,ICT Software Customised & Bespoke
South Lakeland District Council,http://opendatacommunities.org/id/district-council/south-lakeland,31/08/2015,Printing Section,Central Services,http://opendatacommunities.org/def/concept/finance/sercop/objective/102,BANNER T/A SUPPLIES TEAM,5510758,10/08/2015,51533,68.07,0,One  x Double pack of HP 1102 for Sue,340000,Stationery
South Lakeland District Council,http://opendatacommunities.org/id/district-council/south-lakeland,31/08/2015,Environment and Housing,SLDC as Agent,,Springfield Hostel,,10/08/2015,51535,"37,000.00",0,Springboard Scheme Finance (Domestic,201700,Financial Services Grants
South Lakeland District Council,http://opendatacommunities.org/id/district-council/south-lakeland,31/08/2015,Human Resources,Central Services,http://opendatacommunities.org/def/concept/finance/sercop/objective/102,IOSH SERVICES LTD,1816826,10/08/2015,51536,65,0,Title: Working towards a safer,221100,Health & Safety� Maintenance
South Lakeland District Council,http://opendatacommunities.org/id/district-council/south-lakeland,31/08/2015,Business Support Community Services,Internal Trading Accounts,,ARCO LIMITED,133804,19/08/2015,51537,53.6,0,PPE 2015/16,141100,Clothing Protective
South Lakeland District Council,http://opendatacommunities.org/id/district-council/south-lakeland,31/08/2015,Legal Services,Central Services,http://opendatacommunities.org/def/concept/finance/sercop/objective/102,KINGS CHAMBERS,7091130,10/08/2015,51538,900,0,Professional fees re,281300,Legal Services Legal Opinion
South Lakeland District Council,http://opendatacommunities.org/id/district-council/south-lakeland,31/08/2015,Social Enterprise Admin,Highways & Transport Services,http://opendatacommunities.org/def/concept/finance/sercop/objective/107,METRIC GROUP LIMITED,2560839,10/08/2015,51539,693,0,Web hosting and web tariff editor for 66,359999,Street & Traffic Not Elsewhere Classifie
South Lakeland District Council,http://opendatacommunities.org/id/district-council/south-lakeland,31/08/2015,Social Enterprise Admin,Central Services,http://opendatacommunities.org/def/concept/finance/sercop/objective/102,CUMBRIA COUNTY COUNCIL,,24/08/2015,51540,"2,060.00",0,LAND CHARGE SEARCH ENQUIRIES COMMONS,908000,Public Bodies Council support services
South Lakeland District Council,http://opendatacommunities.org/id/district-council/south-lakeland,31/08/2015,Business Support Community Services,Internal Trading Accounts,,EK MOTOR FACTORS LTD,838524,24/08/2015,51542,-23.82,0,Wiper blade,381400,Vehicle Mgt Maintenance
South Lakeland District Council,http://opendatacommunities.org/id/district-council/south-lakeland,31/08/2015,Business Support Community Services,Internal Trading Accounts,,BRIAN ARMISTEAD LTD T/A SINKFALL RECYCLI,4133280,17/08/2015,51543,"1,421.60",0,Green waste tipping - 2015/16,391110,Construction Buildings Construction
South Lakeland District Council,http://opendatacommunities.org/id/district-council/south-lakeland,31/08/2015,Social Enterprise Admin,Cultural Environmental Regulatory & Planning Services,http://opendatacommunities.org/def/concept/finance/sercop/objective/104,B & J METALS (SKIP HIRE) LTD,4634318,10/08/2015,51544,420,0,Grounds waste disposal - Sandylands Road,182011,Environment Waste Management Consumables
South Lakeland District Council,http://opendatacommunities.org/id/district-council/south-lakeland,31/08/2015,Social Enterprise Admin,Cultural Environmental Regulatory & Planning Services,http://opendatacommunities.org/def/concept/finance/sercop/objective/104,B & J METALS (SKIP HIRE) LTD,4634318,10/08/2015,51544,"2,925.00",0,Grounds waste disposal - Sandylands Road,182011,Environment Waste Management Consumables
South Lakeland District Council,http://opendatacommunities.org/id/district-council/south-lakeland,31/08/2015,Revenues and Benefits,Central Services,http://opendatacommunities.org/def/concept/finance/sercop/objective/102,PITNEY BOWES LTD,182037,26/08/2015,51547,162.7,0,2015-2016   Stationery & office,301200,Mail Services� Postage
South Lakeland District Council,http://opendatacommunities.org/id/district-council/south-lakeland,31/08/2015,Legal Services,Central Services,http://opendatacommunities.org/def/concept/finance/sercop/objective/102,WEIGHTMANS LLP,OC326117,10/08/2015,51548,65,0,Re:  Booth (Court/Bankruptcy fees etc.),281300,Legal Services Legal Opinion
South Lakeland District Council,http://opendatacommunities.org/id/district-council/south-lakeland,31/08/2015,Business Support Community Services,Internal Trading Accounts,,A & W COMMERCIALS LTD,2630625,17/08/2015,51551,377.9,0,Hoses,381400,Vehicle Mgt Maintenance
South Lakeland District Council,http://opendatacommunities.org/id/district-council/south-lakeland,31/08/2015,Coronation Hall,External Trading Accounts,,Morson International,,10/08/2015,51556,99.4,0,Ulverston Market Hall cleaner to y/e 31,261300,HR Recruitment & Assessment
South Lakeland District Council,http://opendatacommunities.org/id/district-council/south-lakeland,31/08/2015,Business Support Community Services,Housing Services,http://opendatacommunities.org/def/concept/finance/sercop/objective/108,Landlord,,10/08/2015,51557,400,0,Monthly rent,999999,Unclassifiable
South Lakeland District Council,http://opendatacommunities.org/id/district-council/south-lakeland,31/08/2015,Business Support Community Services,Housing Services,http://opendatacommunities.org/def/concept/finance/sercop/objective/108,Landlord,,10/08/2015,51558,520,0,Monthly rent,202000,Financial Services Rents
South Lakeland District Council,http://opendatacommunities.org/id/district-council/south-lakeland,31/08/2015,Business Support Community Services,Housing Services,http://opendatacommunities.org/def/concept/finance/sercop/objective/108,Landlord,,10/08/2015,51559,520,0,Monthly rent,202000,Financial Services Rents
South Lakeland District Council,http://opendatacommunities.org/id/district-council/south-lakeland,31/08/2015,Coronation Hall,Cultural Environmental Regulatory & Planning Services,http://opendatacommunities.org/def/concept/finance/sercop/objective/104,ST JOHN AMBULANCE CUMBRIA,,10/08/2015,51560,52.8,0,FAO KR,311600,Healthcare Services
South Lakeland District Council,http://opendatacommunities.org/id/district-council/south-lakeland,31/08/2015,Coronation Hall,Cultural Environmental Regulatory & Planning Services,http://opendatacommunities.org/def/concept/finance/sercop/objective/104,ST JOHN AMBULANCE CUMBRIA,,10/08/2015,51561,105.6,0,FAO KR,311600,Healthcare Services
South Lakeland District Council,http://opendatacommunities.org/id/district-council/south-lakeland,31/08/2015,Business Support Community Services,Housing Services,http://opendatacommunities.org/def/concept/finance/sercop/objective/108,Landlord,7121028,10/08/2015,51562,400,0,Monthly rent ,202000,Financial Services Rents
South Lakeland District Council,http://opendatacommunities.org/id/district-council/south-lakeland,31/08/2015,Business Support Community Services,Housing Services,http://opendatacommunities.org/def/concept/finance/sercop/objective/108,Landlord,,10/08/2015,51563,500,0,Monthly rent ,202000,Financial Services Rents
South Lakeland District Council,http://opendatacommunities.org/id/district-council/south-lakeland,31/08/2015,Social Enterprise Admin,Central Services,http://opendatacommunities.org/def/concept/finance/sercop/objective/102,CUMBRIA COUNTY COUNCIL,,24/08/2015,51565,"5,529.00",0,LAND SEARCH CHARGE SEARCH ENQUIRIES CCC,908000,Public Bodies Council support services
South Lakeland District Council,http://opendatacommunities.org/id/district-council/south-lakeland,31/08/2015,Business Support Community Services,Housing Services,http://opendatacommunities.org/def/concept/finance/sercop/objective/108,Landlord,,10/08/2015,51566,520,0,159,202000,Financial Services Rents
South Lakeland District Council,http://opendatacommunities.org/id/district-council/south-lakeland,31/08/2015,Printing Section,Central Services,http://opendatacommunities.org/def/concept/finance/sercop/objective/102,ROSEFOX PAPER LIMITED,1655083,10/08/2015,51567,"1,167.60",0,Recycled 170gsm Silk SRA3,341000,Stationery Paper
South Lakeland District Council,http://opendatacommunities.org/id/district-council/south-lakeland,31/08/2015,Business Support Community Services,Internal Trading Accounts,,JOHNSTON SWEEPERS LTD,199841,10/08/2015,51568,353.04,0,Screens,181600,Environment Street Cleansing
South Lakeland District Council,http://opendatacommunities.org/id/district-council/south-lakeland,31/08/2015,Business Support Community Services,Internal Trading Accounts,,FAUN ZOELLER (UK) LTD,751804,10/08/2015,51569,279,0,Repair SL021,381400,Vehicle Mgt Maintenance
South Lakeland District Council,http://opendatacommunities.org/id/district-council/south-lakeland,31/08/2015,Business Support Community Services,Internal Trading Accounts,,HAKO MACHINES LIMITED,1414225,10/08/2015,51570,131.99,0,Jockey wheel,131000,Cleaning & Janitorial Cleaning Materials
South Lakeland District Council,http://opendatacommunities.org/id/district-council/south-lakeland,31/08/2015,Business Support Community Services,Housing Services,http://opendatacommunities.org/def/concept/finance/sercop/objective/108,Landlord,,10/08/2015,51571,520,0,Monthly rent ,202000,Financial Services Rents
South Lakeland District Council,http://opendatacommunities.org/id/district-council/south-lakeland,31/08/2015,Business Support Community Services,Housing Services,http://opendatacommunities.org/def/concept/finance/sercop/objective/108,Landlord,,10/08/2015,51573,101.07,0,Additional insurance ,202000,Financial Services Rents
South Lakeland District Council,http://opendatacommunities.org/id/district-council/south-lakeland,31/08/2015,Business Support Community Services,Housing Services,http://opendatacommunities.org/def/concept/finance/sercop/objective/108,Vigilant Security Services UK Ltd,5914271,12/08/2015,51574,"3,187.08",0,Monthly payment for the security Guard,192213,Facilities Security Manned Guarding
South Lakeland District Council,http://opendatacommunities.org/id/district-council/south-lakeland,31/08/2015,Business Support Community Services,Housing Services,http://opendatacommunities.org/def/concept/finance/sercop/objective/108,PHS GROUP PLC,,12/08/2015,51575,233.45,0,Washroom products and non hazardous,131312,Cleaning & Janitorial Washroom Sanitat
South Lakeland District Council,http://opendatacommunities.org/id/district-council/south-lakeland,31/08/2015,Business Support Community Services,SLDC as Agent,,DISCLOSURE AND BARRING SERVICE,,12/08/2015,51580,308,0,DBS Checks for Taxi Drivers,202100,Financial Services Subscriptions
South Lakeland District Council,http://opendatacommunities.org/id/district-council/south-lakeland,31/08/2015,Social Enterprise Admin,SLDC as Agent,,PAY BY PHONE (PAYPOINT),,12/08/2015,51581,244.34,0,Pay-by-phone charges from 1 April 2015,351400,Street & Traffic Traffic Control
South Lakeland District Council,http://opendatacommunities.org/id/district-council/south-lakeland,31/08/2015,Financial Services,Central Services,http://opendatacommunities.org/def/concept/finance/sercop/objective/102,ALLPAY.NET LTD (NCR),6871069,19/08/2015,51582,20.08,0,Inv. 401982 31.07.15 SLBC,209999,Financial Services Not Elsewhere Classif
South Lakeland District Council,http://opendatacommunities.org/id/district-council/south-lakeland,31/08/2015,Financial Services,Central Services,http://opendatacommunities.org/def/concept/finance/sercop/objective/102,ALLPAY.NET LTD (NCR),6871069,19/08/2015,51583,57.02,0,Inv. 401982 31.07.15 SLBC,209999,Financial Services Not Elsewhere Classif
South Lakeland District Council,http://opendatacommunities.org/id/district-council/south-lakeland,31/08/2015,Financial Services,Central Services,http://opendatacommunities.org/def/concept/finance/sercop/objective/102,ALLPAY.NET LTD (NCR),6871069,19/08/2015,51584,32.76,0,Inv. 401982 31.07.15 SLBC,209999,Financial Services Not Elsewhere Classif
South Lakeland District Council,http://opendatacommunities.org/id/district-council/south-lakeland,31/08/2015,Financial Services,Central Services,http://opendatacommunities.org/def/concept/finance/sercop/objective/102,ALLPAY.NET LTD (NCR),6871069,19/08/2015,51585,"1,124.92",0,Inv. 401982 31.07.15 SLBC,209999,Financial Services Not Elsewhere Classif
South Lakeland District Council,http://opendatacommunities.org/id/district-council/south-lakeland,31/08/2015,Financial Services,Central Services,http://opendatacommunities.org/def/concept/finance/sercop/objective/102,ALLPAY.NET LTD (NCR),6871069,19/08/2015,51586,535.57,0,Inv. 401982 31.07.15 SLBC,209999,Financial Services Not Elsewhere Classif
South Lakeland District Council,http://opendatacommunities.org/id/district-council/south-lakeland,31/08/2015,Human Resources,Central Services,http://opendatacommunities.org/def/concept/finance/sercop/objective/102,THE QUAKER TAPESTRY KENDAL LTD,,24/08/2015,51587,212.5,0,Room Hire for 11/06/2015,291400,Arts & Leisure Services Sport & Fitness
South Lakeland District Council,http://opendatacommunities.org/id/district-council/south-lakeland,31/08/2015,Development Implementation,Central Services,http://opendatacommunities.org/def/concept/finance/sercop/objective/102,ADECCO UK LIMITED,593232,12/08/2015,51588,469.85,0,Economic Project Officer - ,261400,HR Temporary & Agency Staff
South Lakeland District Council,http://opendatacommunities.org/id/district-council/south-lakeland,31/08/2015,Development Implementation,Central Services,http://opendatacommunities.org/def/concept/finance/sercop/objective/102,ADECCO UK LIMITED,593232,12/08/2015,51589,393.6,0,Economic Project Officer -,261400,HR Temporary & Agency Staff
South Lakeland District Council,http://opendatacommunities.org/id/district-council/south-lakeland,31/08/2015,Business Support Community Services,Internal Trading Accounts,,CUMBRIA WASTE RECYCLING LTD,3162439,12/08/2015,51590,216,0,Skip emptying at Ecclerigg & Ulverston,182012,Environment Waste Management Recycling
South Lakeland District Council,http://opendatacommunities.org/id/district-council/south-lakeland,31/08/2015,Business Support Community Services,Internal Trading Accounts,,CUMBRIA WASTE RECYCLING LTD,3162439,12/08/2015,51591,972,0,Skip emptying at Ecclerigg & Ulverston,182012,Environment Waste Management Recycling
South Lakeland District Council,http://opendatacommunities.org/id/district-council/south-lakeland,31/08/2015,Business Support Community Services,Internal Trading Accounts,,RIBBLESDALE AUTO ELECTRICS 1992 LTD,2732686,12/08/2015,51592,22,0,Lamps,381500,Vehicle Mgt Parts
South Lakeland District Council,http://opendatacommunities.org/id/district-council/south-lakeland,31/08/2015,Business Support Community Services,Internal Trading Accounts,,M G D LTD,,12/08/2015,51593,35,0,MOTs 01/04/15 - 31/03/16,381400,Vehicle Mgt Maintenance
South Lakeland District Council,http://opendatacommunities.org/id/district-council/south-lakeland,31/08/2015,Business Support Community Services,Internal Trading Accounts,,FREIGHT TRANSPORT ASSOCIATION,,12/08/2015,51594,134,0,Stickers,361100,Public Transport Haulage
South Lakeland District Council,http://opendatacommunities.org/id/district-council/south-lakeland,31/08/2015,Business Support Community Services,Internal Trading Accounts,,TECHNIJET LTD,2776601,12/08/2015,51595,151.94,0,Service & repair pressure washers,139999,Cleaning & Janitorial Not Elsewhere Clas
South Lakeland District Council,http://opendatacommunities.org/id/district-council/south-lakeland,31/08/2015,Business Support Community Services,Internal Trading Accounts,,FAUN ZOELLER (UK) LTD,751804,12/08/2015,51596,59.6,0,Striker,381400,Vehicle Mgt Maintenance
South Lakeland District Council,http://opendatacommunities.org/id/district-council/south-lakeland,31/08/2015,Business Support Community Services,Internal Trading Accounts,,AINSWORTH'S GARAGE,,12/08/2015,51597,170,0,Replace wheel & tyre,381400,Vehicle Mgt Maintenance
South Lakeland District Council,http://opendatacommunities.org/id/district-council/south-lakeland,31/08/2015,Business Support Community Services,Internal Trading Accounts,,AINSWORTH'S GARAGE,,12/08/2015,51598,45,0,Replace wheel & tyre,381400,Vehicle Mgt Maintenance
South Lakeland District Council,http://opendatacommunities.org/id/district-council/south-lakeland,31/08/2015,Business Support Community Services,Internal Trading Accounts,,ARCO LIMITED,133804,17/08/2015,51600,51.1,0,PPE 2015/16,141100,Clothing Protective
South Lakeland District Council,http://opendatacommunities.org/id/district-council/south-lakeland,31/08/2015,Financial Services,Central Services,http://opendatacommunities.org/def/concept/finance/sercop/objective/102,NEWSQUEST MEDIA GROUP LTD,3102566,12/08/2015,51601,"1,139.00",0,Members' Allowance Notice 2014/15,191000,Facilities Advertising
South Lakeland District Council,http://opendatacommunities.org/id/district-council/south-lakeland,31/08/2015,Business Support Community Services,Internal Trading Accounts,,ALLSTAR BUSINESS SOLUTIONS LTD (NCR),2631112,19/08/2015,51603,"2,443.45",0,Fuel to 31/07/15,381600,Vehicle Mgt Leasing
South Lakeland District Council,http://opendatacommunities.org/id/district-council/south-lakeland,31/08/2015,Business Support Community Services,Internal Trading Accounts,,ALLSTAR BUSINESS SOLUTIONS LTD (NCR),2631112,19/08/2015,51603,807.84,0,Fuel to 31/07/15,381600,Vehicle Mgt Leasing
South Lakeland District Council,http://opendatacommunities.org/id/district-council/south-lakeland,31/08/2015,Business Support Community Services,Internal Trading Accounts,,ALLSTAR BUSINESS SOLUTIONS LTD (NCR),2631112,19/08/2015,51603,"14,453.07",0,Fuel to 31/07/15,381600,Vehicle Mgt Leasing
South Lakeland District Council,http://opendatacommunities.org/id/district-council/south-lakeland,31/08/2015,Business Support Community Services,Central Services,http://opendatacommunities.org/def/concept/finance/sercop/objective/102,CHARTERED INSTITUTE OF HOUSING,,17/08/2015,51604,140.96,0,Membership fee for AD,202100,Financial Services Subscriptions
South Lakeland District Council,http://opendatacommunities.org/id/district-council/south-lakeland,31/08/2015,Lake Wardens,Cultural Environmental Regulatory & Planning Services,http://opendatacommunities.org/def/concept/finance/sercop/objective/104,ENVIROFIRST LTD,5999123,17/08/2015,51607,66.24,0,Rental & Emptying of Re-Cycling Bins at,182012,Environment Waste Management Recycling
South Lakeland District Council,http://opendatacommunities.org/id/district-council/south-lakeland,31/08/2015,Human Resources,Central Services,http://opendatacommunities.org/def/concept/finance/sercop/objective/102,KENTDALE FIRST AID TRAINING,,12/08/2015,51608,270,0,N. B,261500,HR Training & Conferences
South Lakeland District Council,http://opendatacommunities.org/id/district-council/south-lakeland,31/08/2015,Legal Services,Central Services,http://opendatacommunities.org/def/concept/finance/sercop/objective/102,KINGS CHAMBERS,7091130,17/08/2015,51609,"4,425.00",0,Professional Fees,281300,Legal Services Legal Opinion
South Lakeland District Council,http://opendatacommunities.org/id/district-council/south-lakeland,31/08/2015,Business Support Community Services,Cultural Environmental Regulatory & Planning Services,http://opendatacommunities.org/def/concept/finance/sercop/objective/104,INTELLIGENT DATA SYSTEMS (UK) LTD,5148878,12/08/2015,51611,45.25,0,IDS Checks for Taxi Drivers,271510,ICT Application Service Provision
South Lakeland District Council,http://opendatacommunities.org/id/district-council/south-lakeland,31/08/2015,Business Support Community Services,Internal Trading Accounts,,GREENCHEM SOLUTIONS LTD,5175801,12/08/2015,51612,300,0,AdBlue,189999,Environmental Services Not Elsewhere Cla
South Lakeland District Council,http://opendatacommunities.org/id/district-council/south-lakeland,31/08/2015,Business Support Community Services,Internal Trading Accounts,,GREENCHEM SOLUTIONS LTD,5175801,12/08/2015,51612,26.25,0,AdBlue,189999,Environmental Services Not Elsewhere Cla
South Lakeland District Council,http://opendatacommunities.org/id/district-council/south-lakeland,31/08/2015,Business Support Community Services,Environment Regulatory,,Great Green Systems Ltd,6632263,12/08/2015,51613,844.8,0,Replaces order 24352.,381206,Vehicle Mgt Heavy Construction Equip Pur
South Lakeland District Council,http://opendatacommunities.org/id/district-council/south-lakeland,31/08/2015,Development Implementation,Cultural Environmental Regulatory & Planning Services,http://opendatacommunities.org/def/concept/finance/sercop/objective/104,TRILITHON LTD,3390011,17/08/2015,51614,200,0,Events - Email bounce backs.,271515,ICT Website Development
South Lakeland District Council,http://opendatacommunities.org/id/district-council/south-lakeland,31/08/2015,Development Implementation,Cultural Environmental Regulatory & Planning Services,http://opendatacommunities.org/def/concept/finance/sercop/objective/104,TRILITHON LTD,3390011,17/08/2015,51615,300,0,Kendal Wifi email confirmation HTML,271515,ICT Website Development
South Lakeland District Council,http://opendatacommunities.org/id/district-council/south-lakeland,31/08/2015,Legal Services,External Trading Accounts,,HYGIENE CLEANING SUPPLIES LTD,4753934,12/08/2015,51616,28.44,0,Mop Heads (red),131011,Cleaning & Janitorial Cleaning Materials
South Lakeland District Council,http://opendatacommunities.org/id/district-council/south-lakeland,31/08/2015,Revenues and Benefits,Central Services,http://opendatacommunities.org/def/concept/finance/sercop/objective/102,BADENOCH & CLARK,1356186,24/08/2015,51617,533.4,0,Revs and Bens May 2015,261300,HR Recruitment & Assessment
South Lakeland District Council,http://opendatacommunities.org/id/district-council/south-lakeland,31/08/2015,Democratic Services,Central Services,http://opendatacommunities.org/def/concept/finance/sercop/objective/102,RIVERBANK HOSPITALITY CATERING,,12/08/2015,51618,71.25,0,Buffet for 15 Councillors for 29 July,111000,Catering Banquet & Catering
South Lakeland District Council,http://opendatacommunities.org/id/district-council/south-lakeland,31/08/2015,Social Enterprise Admin,Central Services,http://opendatacommunities.org/def/concept/finance/sercop/objective/102,ENVIROFIRST LTD,5999123,12/08/2015,51619,132.32,0,Lowther Street Wheelie bin mixed,182012,Environment Waste Management Recycling
South Lakeland District Council,http://opendatacommunities.org/id/district-council/south-lakeland,31/08/2015,Environment and Housing,Housing,http://opendatacommunities.org/def/concept/finance/sercop/objective/108,VINCENT HOLLERAN PLUMBING & HEATING,,12/08/2015,51620,"4,370.69",0,Killington,101700,Building Heating & Air Conditioning
South Lakeland District Council,http://opendatacommunities.org/id/district-council/south-lakeland,31/08/2015,Environment and Housing,Housing,http://opendatacommunities.org/def/concept/finance/sercop/objective/108,C W COX & SONS (KENDAL) LTD,3498844,12/08/2015,51622,"5,055.86",0,"Howgill Houses, Burneside,",101000,Building Bathrooms
South Lakeland District Council,http://opendatacommunities.org/id/district-council/south-lakeland,31/08/2015,Human Resources,Central Services,http://opendatacommunities.org/def/concept/finance/sercop/objective/102,SPECSAVERS,2604077,12/08/2015,51624,119,0,VDU Eye test for employees,311400,Healthcare Fees
South Lakeland District Council,http://opendatacommunities.org/id/district-council/south-lakeland,31/08/2015,Electoral Services,Central Services,http://opendatacommunities.org/def/concept/finance/sercop/objective/102,THOMSON REUTERS (PROFESSIONAL) UK LTD,1679046,12/08/2015,51626,185,0,Schofields Election Law Issue 24,202100,Financial Services Subscriptions
South Lakeland District Council,http://opendatacommunities.org/id/district-council/south-lakeland,31/08/2015,Business Support Community Services,Housing Services,http://opendatacommunities.org/def/concept/finance/sercop/objective/108,Open Door Properties,3749975,12/08/2015,51627,700,0,Loan of 700  towards ,202000,Financial Services Rents
South Lakeland District Council,http://opendatacommunities.org/id/district-council/south-lakeland,31/08/2015,Business Support Community Services,Housing Services,http://opendatacommunities.org/def/concept/finance/sercop/objective/108,Robinson Property Servs & Joinery Cntrs,,12/08/2015,51628,123.72,0,Installing curtain rail and window pane,192210,Facilities Security Access Control
South Lakeland District Council,http://opendatacommunities.org/id/district-council/south-lakeland,31/08/2015,ICT Group,Central Services,http://opendatacommunities.org/def/concept/finance/sercop/objective/102,Insight Direct (Uk) Ltd,2579852,17/08/2015,51629,119.55,0,5x 320-M Plantronics USB Headsets,271200,ICT Hardware
South Lakeland District Council,http://opendatacommunities.org/id/district-council/south-lakeland,31/08/2015,Development Implementation,Cultural Environmental Regulatory & Planning Services,http://opendatacommunities.org/def/concept/finance/sercop/objective/104,THE PLAIN CREATIVE AGENCY LTD,6867950,17/08/2015,51630,350,0,"For creative concepts, design and",191000,Facilities Advertising
South Lakeland District Council,http://opendatacommunities.org/id/district-council/south-lakeland,31/08/2015,Environment and Housing,Housing Services,http://opendatacommunities.org/def/concept/finance/sercop/objective/108,CHARTERED INSTITUTE OF HOUSING,,17/08/2015,51631,72,0,CIH NE Conference 2015 ,202100,Financial Services Subscriptions
South Lakeland District Council,http://opendatacommunities.org/id/district-council/south-lakeland,31/08/2015,Social Enterprise Admin,Central Services,http://opendatacommunities.org/def/concept/finance/sercop/objective/102,YORKSHIRE DALES NATIONAL PARK AUTHY,,24/08/2015,51632,465,0,LAND CHARGE SEARCH ENQUIRIES YDNPA,202100,Financial Services Subscriptions
South Lakeland District Council,http://opendatacommunities.org/id/district-council/south-lakeland,31/08/2015,Environmental Protection,Cultural Environmental Regulatory & Planning Services,http://opendatacommunities.org/def/concept/finance/sercop/objective/104,COOPER ENGRAVING,,24/08/2015,51633,175,0,4 off seat plaques,102400,Building Signage
South Lakeland District Council,http://opendatacommunities.org/id/district-council/south-lakeland,31/08/2015,Social Enterprise Admin,Cultural Environmental Regulatory & Planning Services,http://opendatacommunities.org/def/concept/finance/sercop/objective/104,R J MOORHOUSE WELDING & FABRICATIONS,,17/08/2015,51634,60,0,Welding and repair to seesaw at Mill Dam,391200,Construction Engineering
South Lakeland District Council,http://opendatacommunities.org/id/district-council/south-lakeland,31/08/2015,Business Support Community Services,Internal Trading Accounts,,FURNESS FLUID POWER LTD,5675728,24/08/2015,51635,181.17,0,Repair hose,260000,HR
South Lakeland District Council,http://opendatacommunities.org/id/district-council/south-lakeland,31/08/2015,Democratic Services,SLDC as Agent,,CASTLERIGG CONSULTING,6747285,17/08/2015,51637,"7,000.00",0,Support to the Transformation Challenge,159999,Consultancy Not Elsewhere Classified
South Lakeland District Council,http://opendatacommunities.org/id/district-council/south-lakeland,31/08/2015,Democratic Services,Central Services,http://opendatacommunities.org/def/concept/finance/sercop/objective/102,CASTLERIGG CONSULTING,6747285,17/08/2015,51638,"7,000.00",0,External Support to Digital Innovation,159999,Consultancy Not Elsewhere Classified
South Lakeland District Council,http://opendatacommunities.org/id/district-council/south-lakeland,31/08/2015,Social Enterprise Admin,Highways & Transport Services,http://opendatacommunities.org/def/concept/finance/sercop/objective/107,HYGIENE CLEANING SUPPLIES LTD,4753934,24/08/2015,51639,34.35,0,1 x box Jangro Blue C/Fold Paper Towels,131011,Cleaning & Janitorial Cleaning Materials
South Lakeland District Council,http://opendatacommunities.org/id/district-council/south-lakeland,31/08/2015,Business Support Community Services,Housing Services,http://opendatacommunities.org/def/concept/finance/sercop/objective/108,James Andrews Recruitment Solutions,6834852,17/08/2015,51640,575,0,Payment for - Housing,261400,HR Temporary & Agency Staff
South Lakeland District Council,http://opendatacommunities.org/id/district-council/south-lakeland,31/08/2015,Democratic Services,Central Services,http://opendatacommunities.org/def/concept/finance/sercop/objective/102,NORTHGATE VEHICLE HIRE LTD,1434157,17/08/2015,51641,15.14,0,Car Hire 05/08/15,381600,Vehicle Mgt Leasing
South Lakeland District Council,http://opendatacommunities.org/id/district-council/south-lakeland,31/08/2015,Business Support Community Services,Internal Trading Accounts,,VOLVO GROUP UK LTD,2190944,24/08/2015,51642,30,0,Cap,381000,Vehicle Mgt Commercial
South Lakeland District Council,http://opendatacommunities.org/id/district-council/south-lakeland,31/08/2015,Environmental Protection,Cultural Environmental Regulatory & Planning Services,http://opendatacommunities.org/def/concept/finance/sercop/objective/104,THE SIGN MAN,5748839,17/08/2015,51646,130,0,"10 off Alum. ""dogs must be kept on a",102400,Building Signage
South Lakeland District Council,http://opendatacommunities.org/id/district-council/south-lakeland,31/08/2015,ICT Group,Central Services,http://opendatacommunities.org/def/concept/finance/sercop/objective/102,ITPS Professional Services Ltd (DD),,19/08/2015,51647,53.6,0,WLR3 Business Line Rental and Zen Lite,271700,ICT Telecommunications Fixed
South Lakeland District Council,http://opendatacommunities.org/id/district-council/south-lakeland,31/08/2015,ICT Group,Central Services,http://opendatacommunities.org/def/concept/finance/sercop/objective/102,ITPS Professional Services Ltd (DD),,19/08/2015,51648,913.24,0,WLR3 Business Line Rental and Zen Lite,271700,ICT Telecommunications Fixed
South Lakeland District Council,http://opendatacommunities.org/id/district-council/south-lakeland,31/08/2015,ICT Group,Central Services,http://opendatacommunities.org/def/concept/finance/sercop/objective/102,ITPS Professional Services Ltd (DD),,19/08/2015,51648,668.67,0,WLR3 Business Line Rental and Zen Lite,271700,ICT Telecommunications Fixed
South Lakeland District Council,http://opendatacommunities.org/id/district-council/south-lakeland,31/08/2015,Business Support Community Services,Internal Trading Accounts,,AINSWORTH'S GARAGE,,17/08/2015,51650,32,0,Replace wheel & tyre,381400,Vehicle Mgt Maintenance
South Lakeland District Council,http://opendatacommunities.org/id/district-council/south-lakeland,31/08/2015,Business Support Community Services,Transport Planning Policy,http://opendatacommunities.org/def/concept/finance/sercop/objective/107,CASTLE ALARMS 1981 LTD,9231500,19/08/2015,51651,"3,440.00",0,Broadband connection,192212,Facilities Security Equipment
South Lakeland District Council,http://opendatacommunities.org/id/district-council/south-lakeland,31/08/2015,Business Support Community Services,Internal Trading Accounts,,BOC GASES,337663,19/08/2015,51652,431.15,0,Gas supplies 2015/16,371100,Utilities Gas
South Lakeland District Council,http://opendatacommunities.org/id/district-council/south-lakeland,31/08/2015,Business Support Community Services,Cultural Environmental Regulatory & Planning Services,http://opendatacommunities.org/def/concept/finance/sercop/objective/104,OCS GROUP LTD T/A CANNON HYGIENE LTD,1298292,17/08/2015,51653,175,0,Clinical waste collections - June 2015,131011,Cleaning & Janitorial Cleaning Materials
South Lakeland District Council,http://opendatacommunities.org/id/district-council/south-lakeland,31/08/2015,Business Support Community Services,Cultural Environmental Regulatory & Planning Services,http://opendatacommunities.org/def/concept/finance/sercop/objective/104,OCS GROUP LTD T/A CANNON HYGIENE LTD,1298292,17/08/2015,51654,406.72,0,Clinical waste collections - April 2015,131011,Cleaning & Janitorial Cleaning Materials
South Lakeland District Council,http://opendatacommunities.org/id/district-council/south-lakeland,31/08/2015,Business Support Community Services,Cultural Environmental Regulatory & Planning Services,http://opendatacommunities.org/def/concept/finance/sercop/objective/104,OCS GROUP LTD T/A CANNON HYGIENE LTD,1298292,17/08/2015,51655,11.53,0,Clinical waste collections - August 2015,131011,Cleaning & Janitorial Cleaning Materials
South Lakeland District Council,http://opendatacommunities.org/id/district-council/south-lakeland,31/08/2015,Business Support Community Services,Cultural Environmental Regulatory & Planning Services,http://opendatacommunities.org/def/concept/finance/sercop/objective/104,OCS GROUP LTD T/A CANNON HYGIENE LTD,1298292,17/08/2015,51656,"1,982.60",0,Clinical waste collections - June 2015,131011,Cleaning & Janitorial Cleaning Materials
South Lakeland District Council,http://opendatacommunities.org/id/district-council/south-lakeland,31/08/2015,Business Support Community Services,Cultural Environmental Regulatory & Planning Services,http://opendatacommunities.org/def/concept/finance/sercop/objective/104,OCS GROUP LTD T/A CANNON HYGIENE LTD,1298292,17/08/2015,51657,"2,298.13",0,Clinical waste collections - July 2015,131011,Cleaning & Janitorial Cleaning Materials
South Lakeland District Council,http://opendatacommunities.org/id/district-council/south-lakeland,31/08/2015,Business Support Community Services,Internal Trading Accounts,,CUMBRIA TRUCK CENTRE LTD,4298488,17/08/2015,51658,27.89,0,Hose,381300,Vehicle Mgt Industrial
South Lakeland District Council,http://opendatacommunities.org/id/district-council/south-lakeland,31/08/2015,Coronation Hall,External Trading Accounts,,Morson International,,24/08/2015,51659,119.28,0,Ulverston Market Hall cleaner to y/e 31,261300,HR Recruitment & Assessment
South Lakeland District Council,http://opendatacommunities.org/id/district-council/south-lakeland,31/08/2015,Business Support Community Services,Housing Services,http://opendatacommunities.org/def/concept/finance/sercop/objective/108,Landlord,8672920,17/08/2015,51666,400,0,Monthly rent ,202000,Financial Services Rents
South Lakeland District Council,http://opendatacommunities.org/id/district-council/south-lakeland,31/08/2015,Business Support Community Services,Housing Services,http://opendatacommunities.org/def/concept/finance/sercop/objective/108,Landlord,,17/08/2015,51668,"1,190.00",0,Monthly rent ,202000,Financial Services Rents
South Lakeland District Council,http://opendatacommunities.org/id/district-council/south-lakeland,31/08/2015,Business Support Community Services,Housing Services,http://opendatacommunities.org/def/concept/finance/sercop/objective/108,Landlord,,17/08/2015,51670,890,0,Monthly rent ,999999,Unclassifiable
South Lakeland District Council,http://opendatacommunities.org/id/district-council/south-lakeland,31/08/2015,Business Support Community Services,Housing Services,http://opendatacommunities.org/def/concept/finance/sercop/objective/108,Landlord,,17/08/2015,51672,520,0,Monthly rent ,250010,Housing Letting Agents
South Lakeland District Council,http://opendatacommunities.org/id/district-council/south-lakeland,31/08/2015,ICT Group,Central Services,http://opendatacommunities.org/def/concept/finance/sercop/objective/102,DAISY COMMUNICATIONS LTD,4145329,26/08/2015,51673,522.38,0,"Daisy Line Rental Charges (Service),",271700,ICT Telecommunications Fixed
South Lakeland District Council,http://opendatacommunities.org/id/district-council/south-lakeland,31/08/2015,ICT Group,Central Services,http://opendatacommunities.org/def/concept/finance/sercop/objective/102,DAISY COMMUNICATIONS LTD,4145329,26/08/2015,51673,87.42,0,"Daisy Line Rental Charges (Service),",271700,ICT Telecommunications Fixed
South Lakeland District Council,http://opendatacommunities.org/id/district-council/south-lakeland,31/08/2015,Business Support Community Services,Internal Trading Accounts,,BRIAN ARMISTEAD LTD T/A SINKFALL RECYCLI,4133280,24/08/2015,51674,"1,255.20",0,Green waste tipping - 2015/16,391110,Construction Buildings Construction
South Lakeland District Council,http://opendatacommunities.org/id/district-council/south-lakeland,31/08/2015,Development Management,Cultural Environmental Regulatory & Planning Services,http://opendatacommunities.org/def/concept/finance/sercop/objective/104,CARLISLE CITY COUNCIL,,24/08/2015,51676,"1,433.34",0,Payment of IHS Techncial Index Fees,908000,Public Bodies Council support services
South Lakeland District Council,http://opendatacommunities.org/id/district-council/south-lakeland,31/08/2015,Development Management,Cultural Environmental Regulatory & Planning Services,http://opendatacommunities.org/def/concept/finance/sercop/objective/104,CARLISLE CITY COUNCIL,,24/08/2015,51676,860,0,Payment of IHS Techncial Index Fees,908000,Public Bodies Council support services
South Lakeland District Council,http://opendatacommunities.org/id/district-council/south-lakeland,31/08/2015,Social Enterprise Admin,Cultural Environmental Regulatory & Planning Services,http://opendatacommunities.org/def/concept/finance/sercop/objective/104,FURNESS NEWSPAPERS LTD,1155841,24/08/2015,51678,103.6,0,PUBLIC NOTICES FOR PLANNING 1 APRIL 2015,191000,Facilities Advertising
South Lakeland District Council,http://opendatacommunities.org/id/district-council/south-lakeland,31/08/2015,Development Implementation,Central Services,http://opendatacommunities.org/def/concept/finance/sercop/objective/102,ADECCO UK LIMITED,593232,24/08/2015,51687,623.8,0,Economic Project Officer ,261400,HR Temporary & Agency Staff
South Lakeland District Council,http://opendatacommunities.org/id/district-council/south-lakeland,31/08/2015,Revenues and Benefits,Central Services,http://opendatacommunities.org/def/concept/finance/sercop/objective/102,BADENOCH & CLARK,1356186,24/08/2015,51688,533.4,0,Revs and Bens May 2015,261300,HR Recruitment & Assessment
South Lakeland District Council,http://opendatacommunities.org/id/district-council/south-lakeland,31/08/2015,Electoral Services,Central Services,http://opendatacommunities.org/def/concept/finance/sercop/objective/102,NEWSQUEST MEDIA GROUP LTD,3102566,17/08/2015,51689,295,0,Canvass Advert in Westmorland Gazette,191000,Facilities Advertising
South Lakeland District Council,http://opendatacommunities.org/id/district-council/south-lakeland,31/08/2015,Business Support Community Services,Central Services,http://opendatacommunities.org/def/concept/finance/sercop/objective/102,TOUCHDOWN OFFICES LTD,4844444,17/08/2015,51690,196.27,0,Call charges 2015/16,271700,ICT Telecommunications Fixed
South Lakeland District Council,http://opendatacommunities.org/id/district-council/south-lakeland,31/08/2015,Business Support Community Services,Transport Planning Policy,http://opendatacommunities.org/def/concept/finance/sercop/objective/107,ARCO LIMITED,133804,17/08/2015,51691,52.72,0,PPE 2015/16,141100,Clothing Protective
South Lakeland District Council,http://opendatacommunities.org/id/district-council/south-lakeland,31/08/2015,Business Support Community Services,Internal Trading Accounts,,ARCO LIMITED,133804,17/08/2015,51692,86.19,0,PPE 2015/16,141100,Clothing Protective
South Lakeland District Council,http://opendatacommunities.org/id/district-council/south-lakeland,31/08/2015,Business Support Community Services,Transport Planning Policy,http://opendatacommunities.org/def/concept/finance/sercop/objective/107,ARCO LIMITED,133804,17/08/2015,51693,21.08,0,PPE 2015/16,141100,Clothing Protective
South Lakeland District Council,http://opendatacommunities.org/id/district-council/south-lakeland,31/08/2015,Business Support Community Services,Transport Planning Policy,http://opendatacommunities.org/def/concept/finance/sercop/objective/107,ARCO LIMITED,133804,17/08/2015,51694,4.35,0,PPE 2015/16,141100,Clothing Protective
South Lakeland District Council,http://opendatacommunities.org/id/district-council/south-lakeland,31/08/2015,Business Support Community Services,Internal Trading Accounts,,ARCO LIMITED,133804,17/08/2015,51694,987.9,0,PPE 2015/16,141100,Clothing Protective
South Lakeland District Council,http://opendatacommunities.org/id/district-council/south-lakeland,31/08/2015,Business Support Community Services,Internal Trading Accounts,,ARCO LIMITED,133804,17/08/2015,51694,7.3,0,PPE 2015/16,141100,Clothing Protective
South Lakeland District Council,http://opendatacommunities.org/id/district-council/south-lakeland,31/08/2015,Business Support Community Services,Internal Trading Accounts,,Preston Trade Parts Specialists,,17/08/2015,51695,52.75,0,Lamp,381400,Vehicle Mgt Maintenance
South Lakeland District Council,http://opendatacommunities.org/id/district-council/south-lakeland,31/08/2015,Social Enterprise Admin,Cultural Environmental Regulatory & Planning Services,http://opendatacommunities.org/def/concept/finance/sercop/objective/104,NPS NORTH WEST LTD,6614601,17/08/2015,51700,265,0,"TENTERFIELD, BRIGSTEER ROAD,",391110,Construction Buildings Construction
South Lakeland District Council,http://opendatacommunities.org/id/district-council/south-lakeland,31/08/2015,Social Enterprise Admin,Cultural Environmental Regulatory & Planning Services,http://opendatacommunities.org/def/concept/finance/sercop/objective/104,NPS NORTH WEST LTD,6614601,17/08/2015,51701,640,0,VIABILITY ASSESSMENT ROYAL HOTEL BURTON,391110,Construction Buildings Construction
South Lakeland District Council,http://opendatacommunities.org/id/district-council/south-lakeland,31/08/2015,Lake Wardens,Cultural Environmental Regulatory & Planning Services,http://opendatacommunities.org/def/concept/finance/sercop/objective/104,WCF FUELS-NW,,17/08/2015,51702,908,0,2000 Litres of Red Diesel,381100,Vehicle Mgt Fuel
South Lakeland District Council,http://opendatacommunities.org/id/district-council/south-lakeland,31/08/2015,Lake Wardens,Cultural Environmental Regulatory & Planning Services,http://opendatacommunities.org/def/concept/finance/sercop/objective/104,CONISTON CORPORATE EMBROIDERY UK LTD,2421673,17/08/2015,51703,30.32,0,2 x Pairs of Portwest Action Trousers,149999,Clothing Not Elsewhere Classified
South Lakeland District Council,http://opendatacommunities.org/id/district-council/south-lakeland,31/08/2015,Business Support Community Services,Internal Trading Accounts,,H WICKS (LINDAL) LTD,754590,24/08/2015,51704,"1,640.56",0,"Gate fees, handling & baling of",182012,Environment Waste Management Recycling
South Lakeland District Council,http://opendatacommunities.org/id/district-council/south-lakeland,31/08/2015,Human Resources,Central Services,http://opendatacommunities.org/def/concept/finance/sercop/objective/102,KENTDALE FIRST AID TRAINING,,19/08/2015,51715,180,0,First aid training,261500,HR Training & Conferences
South Lakeland District Council,http://opendatacommunities.org/id/district-council/south-lakeland,31/08/2015,Development Management,Cultural Environmental Regulatory & Planning Services,http://opendatacommunities.org/def/concept/finance/sercop/objective/104,SALFORD CITY COUNCIL,,24/08/2015,51716,63.5,0,Checking work under the Building,908000,Public Bodies Council support services
South Lakeland District Council,http://opendatacommunities.org/id/district-council/south-lakeland,31/08/2015,Social Enterprise Admin,Cultural Environmental Regulatory & Planning Services,http://opendatacommunities.org/def/concept/finance/sercop/objective/104,NEWSQUEST MEDIA GROUP LTD,3102566,24/08/2015,51717,95,0,PUBLIC NOTICES FOR PLANNING 1 APRIL - 31,191000,Facilities Advertising
South Lakeland District Council,http://opendatacommunities.org/id/district-council/south-lakeland,31/08/2015,Business Support Community Services,Internal Trading Accounts,,SOLWAY DAF,1393710,26/08/2015,51718,88.66,0,Bulb holders,381000,Vehicle Mgt Commercial
South Lakeland District Council,http://opendatacommunities.org/id/district-council/south-lakeland,31/08/2015,Social Enterprise Admin,Highways & Transport Services,http://opendatacommunities.org/def/concept/finance/sercop/objective/107,G4S SECURE SOLUTIONS (UK) LTD,1046019,19/08/2015,51721,874.84,0,Patrol Services for South Lakeland House,192213,Facilities Security Manned Guarding
South Lakeland District Council,http://opendatacommunities.org/id/district-council/south-lakeland,31/08/2015,Business Support Community Services,Cultural Environmental Regulatory & Planning Services,http://opendatacommunities.org/def/concept/finance/sercop/objective/104,UK SYSTEMS INC LTD,2889369,26/08/2015,51722,106,0,Repairs to drain CCTV equipment and,271200,ICT Hardware
South Lakeland District Council,http://opendatacommunities.org/id/district-council/south-lakeland,31/08/2015,Social Enterprise Admin,Central Services,http://opendatacommunities.org/def/concept/finance/sercop/objective/102,HYGIENE CLEANING SUPPLIES LTD,4753934,26/08/2015,51725,25.08,0,4 x boxes of Jangro Acid Toilet Cl &,131011,Cleaning & Janitorial Cleaning Materials
South Lakeland District Council,http://opendatacommunities.org/id/district-council/south-lakeland,31/08/2015,ICT Group,Central Services,http://opendatacommunities.org/def/concept/finance/sercop/objective/102,THE DOCUMENT MANAGEMENT GROUP LTD,5210023,19/08/2015,51726,247.91,0,Support and maintenance for Fujitsu,191200,Facilities Document Archiving & Storage
South Lakeland District Council,http://opendatacommunities.org/id/district-council/south-lakeland,31/08/2015,Democratic Services,Cultural Environmental Regulatory & Planning Services,http://opendatacommunities.org/def/concept/finance/sercop/objective/104,WINDERMERE TOWN COUNCIL,,19/08/2015,51727,"10,000.00",0,Contribution to Community Toilets 15/16,908000,Public Bodies Council support services
South Lakeland District Council,http://opendatacommunities.org/id/district-council/south-lakeland,31/08/2015,ICT Group,Central Services,http://opendatacommunities.org/def/concept/finance/sercop/objective/102,BRITISH TELECOMMUNICATIONS PLC (DD),,19/08/2015,51728,159.59,0,"BT OneBill VP6833370, various services,",279999,ICT Not Elsewhere Classified
South Lakeland District Council,http://opendatacommunities.org/id/district-council/south-lakeland,31/08/2015,Lake Wardens,Cultural Environmental Regulatory & Planning Services,http://opendatacommunities.org/def/concept/finance/sercop/objective/104,CUMBRIA WASTE RECYCLING LTD,3162439,26/08/2015,51729,224.84,0,Emptying of Refuse Wheelie Bins held at,182012,Environment Waste Management Recycling
South Lakeland District Council,http://opendatacommunities.org/id/district-council/south-lakeland,31/08/2015,Social Enterprise Admin,Highways & Transport Services,http://opendatacommunities.org/def/concept/finance/sercop/objective/107,CUMBRIA WASTE RECYCLING LTD,3162439,26/08/2015,51730,57.22,0,Westmorland Multi-Storey 660ltr wheelie,182012,Environment Waste Management Recycling
South Lakeland District Council,http://opendatacommunities.org/id/district-council/south-lakeland,31/08/2015,Social Enterprise Admin,Central Services,http://opendatacommunities.org/def/concept/finance/sercop/objective/102,CUMBRIA WASTE RECYCLING LTD,3162439,26/08/2015,51731,144.04,0,Wheelie bins Town hall Queen Street,182012,Environment Waste Management Recycling
South Lakeland District Council,http://opendatacommunities.org/id/district-council/south-lakeland,31/08/2015,Kendal Town Hall,Cultural Environmental Regulatory & Planning Services,http://opendatacommunities.org/def/concept/finance/sercop/objective/104,CUMBRIA WASTE RECYCLING LTD,3162439,26/08/2015,51732,156.75,0,Weekly collection of the bins at Kendal,182012,Environment Waste Management Recycling
South Lakeland District Council,http://opendatacommunities.org/id/district-council/south-lakeland,31/08/2015,Social Enterprise Admin,Central Services,http://opendatacommunities.org/def/concept/finance/sercop/objective/102,CUMBRIA WASTE RECYCLING LTD,3162439,26/08/2015,51733,264.3,0,SLH wheelie bin and skip emptying,182012,Environment Waste Management Recycling
South Lakeland District Council,http://opendatacommunities.org/id/district-council/south-lakeland,31/08/2015,Coronation Hall,External Trading Accounts,,CUMBRIA WASTE RECYCLING LTD,3162439,24/08/2015,51734,506.73,0,"Emptying of skips from Market Hall,",182012,Environment Waste Management Recycling
South Lakeland District Council,http://opendatacommunities.org/id/district-council/south-lakeland,31/08/2015,Lake Wardens,Cultural Environmental Regulatory & Planning Services,http://opendatacommunities.org/def/concept/finance/sercop/objective/104,CUMBRIA WASTE RECYCLING LTD,3162439,26/08/2015,51735,248.74,0,Emptying of Refuse Wheelie Bins held at,182012,Environment Waste Management Recycling
South Lakeland District Council,http://opendatacommunities.org/id/district-council/south-lakeland,31/08/2015,Coronation Hall,Cultural Environmental Regulatory & Planning Services,http://opendatacommunities.org/def/concept/finance/sercop/objective/104,CUMBRIA WASTE RECYCLING LTD,3162439,24/08/2015,51736,98.72,0,"Emptying of skips from Coronation Hall,",182012,Environment Waste Management Recycling
South Lakeland District Council,http://opendatacommunities.org/id/district-council/south-lakeland,31/08/2015,Social Enterprise Admin,Central Services,http://opendatacommunities.org/def/concept/finance/sercop/objective/102,CUMBRIA WASTE RECYCLING LTD,3162439,26/08/2015,51737,37.15,0,Langstane House 360ltr wheelie bin,182012,Environment Waste Management Recycling
South Lakeland District Council,http://opendatacommunities.org/id/district-council/south-lakeland,31/08/2015,Development Implementation,Central Services,http://opendatacommunities.org/def/concept/finance/sercop/objective/102,ANTHONY COLLINS SOLICITORS,OC313432,24/08/2015,51752,555,0,NPS Contract Variation,281300,Legal Services Legal Opinion
South Lakeland District Council,http://opendatacommunities.org/id/district-council/south-lakeland,31/08/2015,Electoral Services,Central Services,http://opendatacommunities.org/def/concept/finance/sercop/objective/102,HALAROSE LIMITED,1362834,24/08/2015,51753,718.99,0,Annual Canvass Hera,271600,ICT Software Customised & Bespoke
South Lakeland District Council,http://opendatacommunities.org/id/district-council/south-lakeland,31/08/2015,Policy & Partnerships,Cultural Environmental Regulatory & Planning Services,http://opendatacommunities.org/def/concept/finance/sercop/objective/104,WINDERMERE TOWN COUNCIL,,24/08/2015,51754,100,0,Cllr Member Locality,908000,Public Bodies Council support services
South Lakeland District Council,http://opendatacommunities.org/id/district-council/south-lakeland,31/08/2015,Development Implementation,Planning and Development,,NPS NORTH WEST LTD,6614601,24/08/2015,51755,"1,285.00",0,Additional - Waterhead Site,391110,Construction Buildings Construction
South Lakeland District Council,http://opendatacommunities.org/id/district-council/south-lakeland,31/08/2015,Development Implementation,Planning and Development,,NPS NORTH WEST LTD,6614601,24/08/2015,51756,525,0,Waterhead - Additional visit for meeting,391110,Construction Buildings Construction
South Lakeland District Council,http://opendatacommunities.org/id/district-council/south-lakeland,31/08/2015,Development Implementation,Planning and Development,,NPS NORTH WEST LTD,6614601,24/08/2015,51757,"4,100.00",0,Waterhead Site Investigation,391110,Construction Buildings Construction
South Lakeland District Council,http://opendatacommunities.org/id/district-council/south-lakeland,31/08/2015,Development Implementation,Central Services,http://opendatacommunities.org/def/concept/finance/sercop/objective/102,NPS NORTH WEST LTD,6614601,24/08/2015,51758,"4,149.00",0,UTC Office Refurb Site Investigations &,391110,Construction Buildings Construction
South Lakeland District Council,http://opendatacommunities.org/id/district-council/south-lakeland,31/08/2015,Social Enterprise Admin,Central Services,http://opendatacommunities.org/def/concept/finance/sercop/objective/102,NPS NORTH WEST LTD,6614601,24/08/2015,51759,383.76,0,Space planning 124 Highgate,391110,Construction Buildings Construction
South Lakeland District Council,http://opendatacommunities.org/id/district-council/south-lakeland,31/08/2015,Development Implementation,Central Services,http://opendatacommunities.org/def/concept/finance/sercop/objective/102,NPS NORTH WEST LTD,6614601,24/08/2015,51760,150,0,Fees for Auction for land at Little,391110,Construction Buildings Construction
South Lakeland District Council,http://opendatacommunities.org/id/district-council/south-lakeland,31/08/2015,Development Implementation,Central Services,http://opendatacommunities.org/def/concept/finance/sercop/objective/102,NPS NORTH WEST LTD,6614601,24/08/2015,51761,"2,000.00",0,Assistance with CAB & Age Concern,391110,Construction Buildings Construction
South Lakeland District Council,http://opendatacommunities.org/id/district-council/south-lakeland,31/08/2015,Development Implementation,Central Services,http://opendatacommunities.org/def/concept/finance/sercop/objective/102,NPS NORTH WEST LTD,6614601,24/08/2015,51762,"38,333.33",0,Professional Property Services for,391110,Construction Buildings Construction
South Lakeland District Council,http://opendatacommunities.org/id/district-council/south-lakeland,31/08/2015,Environment and Housing,Housing Services,http://opendatacommunities.org/def/concept/finance/sercop/objective/108,GROWING CONCERNS LANDSCAPING,,19/08/2015,51764,"1,499.08",0,Payment to Growing Concerns for Handy,391200,Construction Engineering
South Lakeland District Council,http://opendatacommunities.org/id/district-council/south-lakeland,31/08/2015,Business Support Community Services,Cultural Environmental Regulatory & Planning Services,http://opendatacommunities.org/def/concept/finance/sercop/objective/104,ALLSTAR BUSINESS SOLUTIONS LTD (NCR),2631112,01/08/2015,51767,70.75,0,Fuel - 15 July 2015 - Private Water Van,381600,Vehicle Mgt Leasing
South Lakeland District Council,http://opendatacommunities.org/id/district-council/south-lakeland,31/08/2015,Business Support Community Services,Internal Trading Accounts,,ALAN MYERSCOUGH LTD,2027076,24/08/2015,51768,397.89,0,Repair SL071,381400,Vehicle Mgt Maintenance
South Lakeland District Council,http://opendatacommunities.org/id/district-council/south-lakeland,31/08/2015,Business Support Community Services,Internal Trading Accounts,,J R RICHARDSON LTD,2225792,24/08/2015,51769,142.7,0,Vehicle washing consumables,381500,Vehicle Mgt Parts
South Lakeland District Council,http://opendatacommunities.org/id/district-council/south-lakeland,31/08/2015,Business Support Community Services,Internal Trading Accounts,,FAUN ZOELLER (UK) LTD,751804,24/08/2015,51770,79.2,0,Lever,381400,Vehicle Mgt Maintenance
South Lakeland District Council,http://opendatacommunities.org/id/district-council/south-lakeland,31/08/2015,Business Support Community Services,Internal Trading Accounts,,FST CONSUMABLES LTD,1342012,24/08/2015,51771,135.62,0,Consumables 01/04/15 - 31/03/16,101600,Building Hand Tools
South Lakeland District Council,http://opendatacommunities.org/id/district-council/south-lakeland,31/08/2015,Business Support Community Services,Internal Trading Accounts,,ARCO LIMITED,133804,24/08/2015,51772,27.98,0,PPE 2015/16,141100,Clothing Protective
South Lakeland District Council,http://opendatacommunities.org/id/district-council/south-lakeland,31/08/2015,Business Support Community Services,Internal Trading Accounts,,ARCO LIMITED,133804,24/08/2015,51773,-13.99,0,PPE 2015/16,141100,Clothing Protective
South Lakeland District Council,http://opendatacommunities.org/id/district-council/south-lakeland,31/08/2015,Business Support Community Services,Internal Trading Accounts,,CUMBRIA WASTE RECYCLING LTD,3162439,24/08/2015,51774,324,0,Skip emptying at Ecclerigg & Ulverston,182012,Environment Waste Management Recycling
South Lakeland District Council,http://opendatacommunities.org/id/district-council/south-lakeland,31/08/2015,Business Support Community Services,Internal Trading Accounts,,CUMBRIA WASTE RECYCLING LTD,3162439,24/08/2015,51775,"1,147.62",0,Skip emptying at Ecclerigg & Ulverston,182012,Environment Waste Management Recycling
South Lakeland District Council,http://opendatacommunities.org/id/district-council/south-lakeland,31/08/2015,Legal Services,Central Services,http://opendatacommunities.org/def/concept/finance/sercop/objective/102,NO 5 CHAMBERS,2727465,24/08/2015,51777,"1,625.00",0,Fees relating to Land at Cocklea Old,281300,Legal Services Legal Opinion
South Lakeland District Council,http://opendatacommunities.org/id/district-council/south-lakeland,31/08/2015,Development Management,Cultural Environmental Regulatory & Planning Services,http://opendatacommunities.org/def/concept/finance/sercop/objective/104,CHRIS BOWKER LTD,1642561,24/08/2015,51778,150,0,Checking of electrical work under Part P,101100,Building Electrical
South Lakeland District Council,http://opendatacommunities.org/id/district-council/south-lakeland,31/08/2015,ICT Group,Central Services,http://opendatacommunities.org/def/concept/finance/sercop/objective/102,Insight Direct (Uk) Ltd,2579852,24/08/2015,51780,17.32,0,Logitech Wireless Combo MK270,271200,ICT Hardware
South Lakeland District Council,http://opendatacommunities.org/id/district-council/south-lakeland,31/08/2015,Business Support Community Services,Internal Trading Accounts,,EK MOTOR FACTORS LTD,838524,24/08/2015,51781,21.15,0,Wheel bearing,381400,Vehicle Mgt Maintenance
South Lakeland District Council,http://opendatacommunities.org/id/district-council/south-lakeland,31/08/2015,Business Support Community Services,Internal Trading Accounts,,EK MOTOR FACTORS LTD,838524,24/08/2015,51782,-7.35,0,Wheel bearing,381400,Vehicle Mgt Maintenance
South Lakeland District Council,http://opendatacommunities.org/id/district-council/south-lakeland,31/08/2015,Business Support Community Services,Internal Trading Accounts,,EK MOTOR FACTORS LTD,838524,24/08/2015,51783,11.19,0,Wheel bearing,381400,Vehicle Mgt Maintenance
South Lakeland District Council,http://opendatacommunities.org/id/district-council/south-lakeland,31/08/2015,Business Support Community Services,Internal Trading Accounts,,EK MOTOR FACTORS LTD,838524,24/08/2015,51784,350,0,Wheel bearing,381400,Vehicle Mgt Maintenance
South Lakeland District Council,http://opendatacommunities.org/id/district-council/south-lakeland,31/08/2015,Business Support Community Services,Internal Trading Accounts,,EK MOTOR FACTORS LTD,838524,24/08/2015,51785,44.8,0,Wheel bearing,381400,Vehicle Mgt Maintenance
South Lakeland District Council,http://opendatacommunities.org/id/district-council/south-lakeland,31/08/2015,Business Support Community Services,Internal Trading Accounts,,EK MOTOR FACTORS LTD,838524,24/08/2015,51786,43.4,0,Wheel bearing,381400,Vehicle Mgt Maintenance
South Lakeland District Council,http://opendatacommunities.org/id/district-council/south-lakeland,31/08/2015,Business Support Community Services,Internal Trading Accounts,,EK MOTOR FACTORS LTD,838524,24/08/2015,51787,14.85,0,Wheel bearing,381400,Vehicle Mgt Maintenance
South Lakeland District Council,http://opendatacommunities.org/id/district-council/south-lakeland,31/08/2015,Business Support Community Services,Internal Trading Accounts,,AINSWORTH'S GARAGE,,26/08/2015,51788,16,0,COC,381400,Vehicle Mgt Maintenance
South Lakeland District Council,http://opendatacommunities.org/id/district-council/south-lakeland,31/08/2015,Business Support Community Services,Internal Trading Accounts,,AINSWORTH'S GARAGE,,26/08/2015,51789,84.5,0,Repair oil leak,381400,Vehicle Mgt Maintenance
South Lakeland District Council,http://opendatacommunities.org/id/district-council/south-lakeland,31/08/2015,Revenues and Benefits,Central Services,http://opendatacommunities.org/def/concept/finance/sercop/objective/102,MERITEC LTD,3224622,24/08/2015,51790,279,0,2015 -2016 RAB Processing Contract and,391200,Construction Engineering
South Lakeland District Council,http://opendatacommunities.org/id/district-council/south-lakeland,31/08/2015,Revenues and Benefits,Central Services,http://opendatacommunities.org/def/concept/finance/sercop/objective/102,MERITEC LTD,3224622,24/08/2015,51791,279,0,2015 -2016 RAB Processing Contract and,391200,Construction Engineering
South Lakeland District Council,http://opendatacommunities.org/id/district-council/south-lakeland,31/08/2015,Financial Services,SLDC as Agent,,LAKELAND ESTATES (AMBLESIDE) LTD,3022544,24/08/2015,51793,"19,629.40",0,2015/16 Income,191700,Facilities Property Management
South Lakeland District Council,http://opendatacommunities.org/id/district-council/south-lakeland,31/08/2015,Business Support Community Services,Housing Services,http://opendatacommunities.org/def/concept/finance/sercop/objective/108,Landlord,7803122,24/08/2015,51794,500,0,Monthly rent ,999999,Unclassifiable
South Lakeland District Council,http://opendatacommunities.org/id/district-council/south-lakeland,31/08/2015,Business Support Community Services,Housing Services,http://opendatacommunities.org/def/concept/finance/sercop/objective/108,Landlord,,24/08/2015,51795,625,0,Monthly rent ,999999,Unclassifiable
South Lakeland District Council,http://opendatacommunities.org/id/district-council/south-lakeland,31/08/2015,Business Support Community Services,Housing Services,http://opendatacommunities.org/def/concept/finance/sercop/objective/108,Landlord,,24/08/2015,51796,500,0,Monthly rent ,202000,Financial Services Rents
South Lakeland District Council,http://opendatacommunities.org/id/district-council/south-lakeland,31/08/2015,Business Support Community Services,Housing Services,http://opendatacommunities.org/def/concept/finance/sercop/objective/108,Landlord,,24/08/2015,51797,520,0,Monthly rent ,202000,Financial Services Rents
South Lakeland District Council,http://opendatacommunities.org/id/district-council/south-lakeland,31/08/2015,Business Support Community Services,Central Services,http://opendatacommunities.org/def/concept/finance/sercop/objective/102,Romaquip Ltd,,24/08/2015,51798,"133,946.00",0,Per specification V14/04,381000,Vehicle Mgt Commercial
South Lakeland District Council,http://opendatacommunities.org/id/district-council/south-lakeland,31/08/2015,Business Support Community Services,Central Services,http://opendatacommunities.org/def/concept/finance/sercop/objective/102,Romaquip Ltd,,24/08/2015,51799,"133,946.00",0,Per specification V14/04,381000,Vehicle Mgt Commercial
South Lakeland District Council,http://opendatacommunities.org/id/district-council/south-lakeland,31/08/2015,Business Support Community Services,Central Services,http://opendatacommunities.org/def/concept/finance/sercop/objective/102,Romaquip Ltd,,24/08/2015,51800,"133,946.00",0,Per specification V14/04,381000,Vehicle Mgt Commercial
South Lakeland District Council,http://opendatacommunities.org/id/district-council/south-lakeland,31/08/2015,Business Support Community Services,Central Services,http://opendatacommunities.org/def/concept/finance/sercop/objective/102,Romaquip Ltd,,24/08/2015,51801,"133,946.00",0,Per specification V14/04,381000,Vehicle Mgt Commercial
South Lakeland District Council,http://opendatacommunities.org/id/district-council/south-lakeland,31/08/2015,Business Support Community Services,Central Services,http://opendatacommunities.org/def/concept/finance/sercop/objective/102,Romaquip Ltd,,24/08/2015,51802,"133,946.00",0,Per specification V14/03,381000,Vehicle Mgt Commercial
South Lakeland District Council,http://opendatacommunities.org/id/district-council/south-lakeland,31/08/2015,Development Implementation,Planning and Development,,LAKE DISTRICT NATIONAL PARK AUTHORITY,,24/08/2015,51803,390,0,Planning Application Fee for Waterhead,201700,Financial Services Grants
South Lakeland District Council,http://opendatacommunities.org/id/district-council/south-lakeland,31/08/2015,Business Support Community Services,Internal Trading Accounts,,Masterstaff Limited,2777593,24/08/2015,51806,"2,052.23",0,Agency staff - August 2015,261300,HR Recruitment & Assessment
South Lakeland District Council,http://opendatacommunities.org/id/district-council/south-lakeland,31/08/2015,Revenues and Benefits,Central Services,http://opendatacommunities.org/def/concept/finance/sercop/objective/102,ROYAL MAIL GROUP PLC,,24/08/2015,51808,132.48,0,2015-2016 Postal Charges a/c 0055114000,301200,Mail Services� Postage
South Lakeland District Council,http://opendatacommunities.org/id/district-council/south-lakeland,31/08/2015,Revenues and Benefits,SLDC as Agent,,ROYAL MAIL GROUP PLC,,24/08/2015,51809,"1,104.95",0,2015-2016 Postal Charges a/c 0198123013,301200,Mail Services� Postage
South Lakeland District Council,http://opendatacommunities.org/id/district-council/south-lakeland,31/08/2015,Revenues and Benefits,SLDC as Agent,,ROYAL MAIL GROUP PLC,,24/08/2015,51813,"1,166.76",0,2015-2016 Postal Charges a/c 0198123013,301200,Mail Services� Postage
South Lakeland District Council,http://opendatacommunities.org/id/district-council/south-lakeland,31/08/2015,Revenues and Benefits,SLDC as Agent,,ROYAL MAIL GROUP PLC,,24/08/2015,51814,"1,149.80",0,2015-2016 Postal Charges a/c 0198123013,301200,Mail Services� Postage
South Lakeland District Council,http://opendatacommunities.org/id/district-council/south-lakeland,31/08/2015,Financial Services,SLDC as Agent,,KIRKLAND TRUST (KENDAL),,24/08/2015,51815,"4,644.45",0,15/16 Income,201700,Financial Services Grants
South Lakeland District Council,http://opendatacommunities.org/id/district-council/south-lakeland,31/08/2015,ICT Group,Central Services,http://opendatacommunities.org/def/concept/finance/sercop/objective/102,VODAFONE LIMITED,1471587,26/08/2015,51816,100,0,Mobile phone replacement for broken,271800,ICT Telecommunications Mobile
South Lakeland District Council,http://opendatacommunities.org/id/district-council/south-lakeland,31/08/2015,Business Support Community Services,Housing Services,http://opendatacommunities.org/def/concept/finance/sercop/objective/108,THE JAMES COCHRANE PRACTICE,,26/08/2015,51817,25,0,Medical advice ,311600,Healthcare Services
South Lakeland District Council,http://opendatacommunities.org/id/district-council/south-lakeland,31/08/2015,Business Support Community Services,Housing Services,http://opendatacommunities.org/def/concept/finance/sercop/objective/108,Robinson Property Servs & Joinery Cntrs,,26/08/2015,51818,31.79,0,Installing New Lock ,192210,Facilities Security Access Control
South Lakeland District Council,http://opendatacommunities.org/id/district-council/south-lakeland,31/08/2015,Coronation Hall,External Trading Accounts,,Morson International,,26/08/2015,51819,119.28,0,Ulverston Market Hall cleaner to y/e 31,261300,HR Recruitment & Assessment
South Lakeland District Council,http://opendatacommunities.org/id/district-council/south-lakeland,31/08/2015,ICT Group,Central Services,http://opendatacommunities.org/def/concept/finance/sercop/objective/102,CIVICA UK LTD,1628868,26/08/2015,51820,"2,310.00",0,Migrate AFD to Server 2012,271600,ICT Software Customised & Bespoke
South Lakeland District Council,http://opendatacommunities.org/id/district-council/south-lakeland,31/08/2015,Social Enterprise Admin,Central Services,http://opendatacommunities.org/def/concept/finance/sercop/objective/102,FLORENCE MADDEN,,26/08/2015,51822,500,0,NLP Coach course,999999,Unclassifiable
South Lakeland District Council,http://opendatacommunities.org/id/district-council/south-lakeland,31/08/2015,Development Strategy,Cultural Environmental Regulatory & Planning Services,http://opendatacommunities.org/def/concept/finance/sercop/objective/104,Matchtech,2526418,26/08/2015,51824,861.6,0, twelve weeks work (29hrs,261300,HR Recruitment & Assessment
South Lakeland District Council,http://opendatacommunities.org/id/district-council/south-lakeland,31/08/2015,Revenues and Benefits,Central Services,http://opendatacommunities.org/def/concept/finance/sercop/objective/102,Airey Consultancy Services Ltd,3518844,26/08/2015,51830,650,0,LSCT Update Service 2016-17 Scheme,151000,Consultancy Business
South Lakeland District Council,http://opendatacommunities.org/id/district-council/south-lakeland,31/08/2015,Human Resources,Central Services,http://opendatacommunities.org/def/concept/finance/sercop/objective/102,ANITA OGILVIE,,26/08/2015,51832,220,0,Theraputic sessions April 15-March 16,999999,Unclassifiable
South Lakeland District Council,http://opendatacommunities.org/id/district-council/south-lakeland,31/08/2015,Coronation Hall,Cultural Environmental Regulatory & Planning Services,http://opendatacommunities.org/def/concept/finance/sercop/objective/104,OCS GROUP LTD T/A CANNON HYGIENE LTD,1298292,26/08/2015,51835,231,0,Medical waste and sanitary disposal to,131011,Cleaning & Janitorial Cleaning Materials
South Lakeland District Council,http://opendatacommunities.org/id/district-council/south-lakeland,31/08/2015,Environmental Protection,Cultural Environmental Regulatory & Planning Services,http://opendatacommunities.org/def/concept/finance/sercop/objective/104,CUMBRIA WASTE RECYCLING LTD,3162439,26/08/2015,51836,32.4,0,SLDC Cemetery waster bin emptying April,182012,Environment Waste Management Recycling
South Lakeland District Council,http://opendatacommunities.org/id/district-council/south-lakeland,31/08/2015,Business Support Community Services,Internal Trading Accounts,,B GREGG,,26/08/2015,51837,100,0,"Remove caravan from Glebe Road,",999999,Unclassifiable
South Lakeland District Council,http://opendatacommunities.org/id/district-council/south-lakeland,31/08/2015,Revenues and Benefits,Central Services,http://opendatacommunities.org/def/concept/finance/sercop/objective/102,PITNEY BOWES LTD,182037,26/08/2015,51838,455,0,2015-2016   Stationery & office,301200,Mail Services� Postage
South Lakeland District Council,http://opendatacommunities.org/id/district-council/south-lakeland,31/08/2015,Business Support Community Services,Internal Trading Accounts,,GREENCHEM SOLUTIONS LTD,5175801,26/08/2015,51840,152,0,AdBlue,189999,Environmental Services Not Elsewhere Cla
South Lakeland District Council,http://opendatacommunities.org/id/district-council/south-lakeland,31/08/2015,Business Support Community Services,Internal Trading Accounts,,GREENCHEM SOLUTIONS LTD,5175801,26/08/2015,51840,200,0,AdBlue,189999,Environmental Services Not Elsewhere Cla
South Lakeland District Council,http://opendatacommunities.org/id/district-council/south-lakeland,31/08/2015,Business Support Community Services,Internal Trading Accounts,,AUTOPARTS (CUMBRIA) LTD,2579204,26/08/2015,51841,55,0,Discs,381500,Vehicle Mgt Parts
South Lakeland District Council,http://opendatacommunities.org/id/district-council/south-lakeland,31/08/2015,ICT Group,Central Services,http://opendatacommunities.org/def/concept/finance/sercop/objective/102,VODAFONE LIMITED,1471587,26/08/2015,51842,125,0,Mobile phone replacement for broken,271800,ICT Telecommunications Mobile
South Lakeland District Council,http://opendatacommunities.org/id/district-council/south-lakeland,31/08/2015,ICT Group,Internal Trading Accounts,,PROBRAND LTD,2653446,26/08/2015,51846,510.12,0,Lenovo -Thinkcentre E73 i7 8GB 1TB,271600,ICT Software Customised & Bespoke
South Lakeland District Council,http://opendatacommunities.org/id/district-council/south-lakeland,31/08/2015,Revenues and Benefits,Central Services,http://opendatacommunities.org/def/concept/finance/sercop/objective/102,HER MAJESTY'S COURTS & TRIBUNAL SERVICE,,26/08/2015,51859,165,0,2015-2016 Council Tax Service,908001,Public Bodies Other Public Bodies
South Lakeland District Council,http://opendatacommunities.org/id/district-council/south-lakeland,31/08/2015,Revenues and Benefits,Central Services,http://opendatacommunities.org/def/concept/finance/sercop/objective/102,HER MAJESTY'S COURTS & TRIBUNAL SERVICE,,26/08/2015,51859,969,0,2015-2016 Council Tax Service,908001,Public Bodies Other Public Bodies
South Lakeland District Council,http://opendatacommunities.org/id/district-council/south-lakeland,31/08/2015,Revenues and Benefits,,,HER MAJESTY'S COURTS & TRIBUNAL SERVICE,,26/08/2015,51859,336,0,2015-2016 Council Tax Service,908001,Public Bodies Other Public Bodies
South Lakeland District Council,http://opendatacommunities.org/id/district-council/south-lakeland,31/08/2015,Revenues and Benefits,Central Services,http://opendatacommunities.org/def/concept/finance/sercop/objective/102,JACOBS,,26/08/2015,51862,198.39,0,2015-2016 Vat only,152200,Consultancy Technical & Feasibility
South Lakeland District Council,http://opendatacommunities.org/id/district-council/south-lakeland,31/08/2015,Revenues and Benefits,Central Services,http://opendatacommunities.org/def/concept/finance/sercop/objective/102,MERITEC LTD,3224622,26/08/2015,51863,279,0,2015 -2016 RAB Processing Contract and,391200,Construction Engineering
South Lakeland District Council,http://opendatacommunities.org/id/district-council/south-lakeland,31/08/2015,Lake Wardens,Cultural Environmental Regulatory & Planning Services,http://opendatacommunities.org/def/concept/finance/sercop/objective/104,Harmony EPOS Solutions Ltd,9266671,26/08/2015,51865,200,0,Annual Cash Register & Slip Receipt,111100,Catering Equipment & Utensils
South Lakeland District Council,http://opendatacommunities.org/id/district-council/south-lakeland,31/08/2015,ICT Group,Central Services,http://opendatacommunities.org/def/concept/finance/sercop/objective/102,Insight Direct (Uk) Ltd,2579852,26/08/2015,51866,"1,703.60",0,"0004218528 Lenovo B50-80 80EW - 15.6"" -",271200,ICT Hardware
South Lakeland District Council,http://opendatacommunities.org/id/district-council/south-lakeland,31/08/2015,Environmental Protection,Cultural Environmental Regulatory & Planning Services,http://opendatacommunities.org/def/concept/finance/sercop/objective/104,CUMBRIA WASTE RECYCLING LTD,3162439,26/08/2015,51868,99.55,0,SLDC Cemetery waster bin emptying April,182012,Environment Waste Management Recycling
South Lakeland District Council,http://opendatacommunities.org/id/district-council/south-lakeland,31/08/2015,Environmental Protection,Cultural Environmental Regulatory & Planning Services,http://opendatacommunities.org/def/concept/finance/sercop/objective/104,CUMBRIA WASTE RECYCLING LTD,3162439,26/08/2015,51870,98.86,0,SLDC Cemetery waster bin emptying April,182012,Environment Waste Management Recycling
South Lakeland District Council,http://opendatacommunities.org/id/district-council/south-lakeland,31/08/2015,Business Support Community Services,Internal Trading Accounts,,AINSWORTH'S GARAGE,,26/08/2015,51871,402.5,0,Recover SL009,381400,Vehicle Mgt Maintenance
South Lakeland District Council,http://opendatacommunities.org/id/district-council/south-lakeland,31/08/2015,Business Support Community Services,Internal Trading Accounts,,BERENDSEN UK LTD,228604,26/08/2015,51872,180.38,0,Workwear hire 29/03/15 - 28/03/16,161000,Domestic Goods Commercial
South Lakeland District Council,http://opendatacommunities.org/id/district-council/south-lakeland,31/08/2015,Environmental Protection,Cultural Environmental Regulatory & Planning Services,http://opendatacommunities.org/def/concept/finance/sercop/objective/104,CUMBRIA WASTE RECYCLING LTD,3162439,26/08/2015,51873,58.81,0,SLDC Cemetery waster bin emptying April,182012,Environment Waste Management Recycling
South Lakeland District Council,http://opendatacommunities.org/id/district-council/south-lakeland,31/08/2015,Environmental Protection,Cultural Environmental Regulatory & Planning Services,http://opendatacommunities.org/def/concept/finance/sercop/objective/104,CUMBRIA WASTE RECYCLING LTD,3162439,26/08/2015,51874,74.3,0,SLDC Cemetery waster bin emptying April,182012,Environment Waste Management Recycling
South Lakeland District Council,http://opendatacommunities.org/id/district-council/south-lakeland,31/08/2015,Environmental Protection,Cultural Environmental Regulatory & Planning Services,http://opendatacommunities.org/def/concept/finance/sercop/objective/104,CUMBRIA WASTE RECYCLING LTD,3162439,26/08/2015,51875,37.15,0,SLDC Cemetery waster bin emptying April,182012,Environment Waste Management Recycling
South Lakeland District Council,http://opendatacommunities.org/id/district-council/south-lakeland,31/08/2015,Business Support Community Services,Internal Trading Accounts,,DENNIS EAGLE LTD,3794455,26/08/2015,51876,498.92,0,Parts,381300,Vehicle Mgt Industrial
South Lakeland District Council,http://opendatacommunities.org/id/district-council/south-lakeland,31/08/2015,Business Support Community Services,Internal Trading Accounts,,DENNIS EAGLE LTD,3794455,26/08/2015,51878,"1,125.00",0,Pipe,381300,Vehicle Mgt Industrial
South Lakeland District Council,http://opendatacommunities.org/id/district-council/south-lakeland,31/08/2015,Business Support Community Services,Internal Trading Accounts,,DENNIS EAGLE LTD,3794455,26/08/2015,51880,32.24,0,Pump,381300,Vehicle Mgt Industrial
South Lakeland District Council,http://opendatacommunities.org/id/district-council/south-lakeland,31/08/2015,Development Management,Cultural Environmental Regulatory & Planning Services,http://opendatacommunities.org/def/concept/finance/sercop/objective/104,NPS NORTH WEST LTD,6614601,26/08/2015,51881,"2,250.00",0,VIABILITY AND ASSESMENT APPRAISALS FOR,391110,Construction Buildings Construction
South Lakeland District Council,http://opendatacommunities.org/id/district-council/south-lakeland,31/08/2015,Printing Section,Central Services,http://opendatacommunities.org/def/concept/finance/sercop/objective/102,ROSEFOX PAPER LIMITED,1655083,26/08/2015,51882,390,0,two pallets of Paper One. One to be,341000,Stationery Paper
South Lakeland District Council,http://opendatacommunities.org/id/district-council/south-lakeland,31/08/2015,Business Support Community Services,Internal Trading Accounts,,DENNIS EAGLE LTD,3794455,26/08/2015,51883,171.83,0,Pump,381300,Vehicle Mgt Industrial
South Lakeland District Council,http://opendatacommunities.org/id/district-council/south-lakeland,31/08/2015,Business Support Community Services,Internal Trading Accounts,,DENNIS EAGLE LTD,3794455,26/08/2015,51885,67.61,0,Pump,381300,Vehicle Mgt Industrial
South Lakeland District Council,http://opendatacommunities.org/id/district-council/south-lakeland,31/08/2015,Revenues and Benefits,Central Services,http://opendatacommunities.org/def/concept/finance/sercop/objective/102,HER MAJESTY'S COURTS & TRIBUNAL SERVICE,,26/08/2015,51887,66,0,2015-2016 Council Tax Service,908001,Public Bodies Other Public Bodies
South Lakeland District Council,http://opendatacommunities.org/id/district-council/south-lakeland,31/08/2015,Revenues and Benefits,Central Services,http://opendatacommunities.org/def/concept/finance/sercop/objective/102,HER MAJESTY'S COURTS & TRIBUNAL SERVICE,,26/08/2015,51887,465,0,2015-2016 Council Tax Service,908001,Public Bodies Other Public Bodies
South Lakeland District Council,http://opendatacommunities.org/id/district-council/south-lakeland,31/08/2015,Business Support Community Services,Housing Services,http://opendatacommunities.org/def/concept/finance/sercop/objective/108,JLA LTD,1094178,26/08/2015,51888,198.7,0,Service and parts for the electric dryer,131100,Cleaning & Janitorial Laundry Equipment
South Lakeland District Council,http://opendatacommunities.org/id/district-council/south-lakeland,31/08/2015,Business Support Community Services,Internal Trading Accounts,,SOLWAY DAF,1393710,26/08/2015,51889,186.66,0,Bulb holders,381000,Vehicle Mgt Commercial
South Lakeland District Council,http://opendatacommunities.org/id/district-council/south-lakeland,31/08/2015,Business Support Community Services,Internal Trading Accounts,,SOLWAY DAF,1393710,26/08/2015,51891,8.15,0,Bulb holders,381000,Vehicle Mgt Commercial
South Lakeland District Council,http://opendatacommunities.org/id/district-council/south-lakeland,31/08/2015,Business Support Community Services,Internal Trading Accounts,,SOLWAY DAF,1393710,26/08/2015,51892,397.35,0,Bulb holders,381000,Vehicle Mgt Commercial
South Lakeland District Council,http://opendatacommunities.org/id/district-council/south-lakeland,31/08/2015,Business Support Community Services,Internal Trading Accounts,,SOLWAY DAF,1393710,26/08/2015,51894,8.36,0,Bulb holders,381000,Vehicle Mgt Commercial
South Lakeland District Council,http://opendatacommunities.org/id/district-council/south-lakeland,31/08/2015,Business Support Community Services,Central Services,http://opendatacommunities.org/def/concept/finance/sercop/objective/102,HYDRAIR TRUCK & TRAILER PARTS LTD,,26/08/2015,51895,"1,575.00",0,Brake discs,381500,Vehicle Mgt Parts
South Lakeland District Council,http://opendatacommunities.org/id/district-council/south-lakeland,31/08/2015,Business Support Community Services,Internal Trading Accounts,,HYDRAIR TRUCK & TRAILER PARTS LTD,,26/08/2015,51897,277.8,0,Brake discs,381500,Vehicle Mgt Parts
South Lakeland District Council,http://opendatacommunities.org/id/district-council/south-lakeland,31/08/2015,Business Support Community Services,Internal Trading Accounts,,HYDRAIR TRUCK & TRAILER PARTS LTD,,26/08/2015,51898,127.5,0,Brake discs,381500,Vehicle Mgt Parts
South Lakeland District Council,http://opendatacommunities.org/id/district-council/south-lakeland,31/08/2015,Business Support Community Services,Internal Trading Accounts,,Harry Park Tyres Ltd,8131208,26/08/2015,51899,60,0,Tyres,381500,Vehicle Mgt Parts
South Lakeland District Council,http://opendatacommunities.org/id/district-council/south-lakeland,31/08/2015,Business Support Community Services,Internal Trading Accounts,,Harry Park Tyres Ltd,8131208,26/08/2015,51900,59.5,0,Tyres,381500,Vehicle Mgt Parts
South Lakeland District Council,http://opendatacommunities.org/id/district-council/south-lakeland,31/08/2015,Business Support Community Services,Internal Trading Accounts,,Harry Park Tyres Ltd,8131208,26/08/2015,51901,"1,410.00",0,Tyres,381500,Vehicle Mgt Parts
South Lakeland District Council,http://opendatacommunities.org/id/district-council/south-lakeland,31/08/2015,Business Support Community Services,Internal Trading Accounts,,Harry Park Tyres Ltd,8131208,26/08/2015,51902,233.7,0,Tyres,381500,Vehicle Mgt Parts
South Lakeland District Council,http://opendatacommunities.org/id/district-council/south-lakeland,31/08/2015,Business Support Community Services,Cultural Environmental Regulatory & Planning Services,http://opendatacommunities.org/def/concept/finance/sercop/objective/104,PITNEY BOWES LTD,182037,26/08/2015,51903,"1,964.40",0,C5,301200,Mail Services� Postage
South Lakeland District Council,http://opendatacommunities.org/id/district-council/south-lakeland,31/08/2015,Business Support Community Services,Internal Trading Accounts,,Masterstaff Limited,2777593,26/08/2015,51904,"3,002.86",0,Agency staff - August 2015,261300,HR Recruitment & Assessment
South Lakeland District Council,http://opendatacommunities.org/id/district-council/south-lakeland,31/08/2015,Business Support Community Services,Internal Trading Accounts,,M G D LTD,,26/08/2015,51905,35,0,MOTs 01/04/15 - 31/03/16,381400,Vehicle Mgt Maintenance
South Lakeland District Council,http://opendatacommunities.org/id/district-council/south-lakeland,31/08/2015,Business Support Community Services,Internal Trading Accounts,,VOLVO GROUP UK LTD,2190944,26/08/2015,51906,940.51,0,Ramp,381000,Vehicle Mgt Commercial
South Lakeland District Council,http://opendatacommunities.org/id/district-council/south-lakeland,31/08/2015,Business Support Community Services,Internal Trading Accounts,,M G D LTD,,26/08/2015,51907,45,0,MOTs 01/04/15 - 31/03/16,381400,Vehicle Mgt Maintenance
South Lakeland District Council,http://opendatacommunities.org/id/district-council/south-lakeland,31/08/2015,Business Support Community Services,Cultural Environmental Regulatory & Planning Services,http://opendatacommunities.org/def/concept/finance/sercop/objective/104,CUMBRIA WASTE RECYCLING LTD,3162439,26/08/2015,51908,"12,017.30",0,Empty recycling banks in 2015/16,182012,Environment Waste Management Recycling
South Lakeland District Council,http://opendatacommunities.org/id/district-council/south-lakeland,31/08/2015,Business Support Community Services,Internal Trading Accounts,,INNOVATIVE SAFETY SYSTEMS LTD,6875015,26/08/2015,51909,142,0,Camera,192200,Facilities Security
South Lakeland District Council,http://opendatacommunities.org/id/district-council/south-lakeland,31/08/2015,Business Support Community Services,Internal Trading Accounts,,Romaquip Ltd,,26/08/2015,51910,208.82,0,Door,381000,Vehicle Mgt Commercial
South Lakeland District Council,http://opendatacommunities.org/id/district-council/south-lakeland,31/08/2015,Business Support Community Services,Internal Trading Accounts,,EK MOTOR FACTORS LTD,838524,26/08/2015,51911,12.86,0,Wiper blade,381400,Vehicle Mgt Maintenance
South Lakeland District Council,http://opendatacommunities.org/id/district-council/south-lakeland,31/08/2015,Business Support Community Services,Internal Trading Accounts,,EK MOTOR FACTORS LTD,838524,26/08/2015,51912,4.04,0,Wiper blade,381400,Vehicle Mgt Maintenance
South Lakeland District Council,http://opendatacommunities.org/id/district-council/south-lakeland,31/08/2015,Business Support Community Services,Internal Trading Accounts,,EK MOTOR FACTORS LTD,838524,26/08/2015,51913,34.94,0,Wiper blade,381400,Vehicle Mgt Maintenance
South Lakeland District Council,http://opendatacommunities.org/id/district-council/south-lakeland,31/08/2015,Business Support Community Services,Internal Trading Accounts,,EK MOTOR FACTORS LTD,838524,26/08/2015,51914,-81.75,0,Wiper blade,381400,Vehicle Mgt Maintenance
South Lakeland District Council,http://opendatacommunities.org/id/district-council/south-lakeland,31/08/2015,Business Support Community Services,Internal Trading Accounts,,EK MOTOR FACTORS LTD,838524,26/08/2015,51915,40.45,0,Wiper blade,381400,Vehicle Mgt Maintenance
South Lakeland District Council,http://opendatacommunities.org/id/district-council/south-lakeland,31/08/2015,Business Support Community Services,Internal Trading Accounts,,EK MOTOR FACTORS LTD,838524,26/08/2015,51916,16.76,0,Wiper blade,381400,Vehicle Mgt Maintenance
South Lakeland District Council,http://opendatacommunities.org/id/district-council/south-lakeland,31/08/2015,Business Support Community Services,Internal Trading Accounts,,EK MOTOR FACTORS LTD,838524,26/08/2015,51917,51.87,0,Wiper blade,381400,Vehicle Mgt Maintenance
South Lakeland District Council,http://opendatacommunities.org/id/district-council/south-lakeland,31/08/2015,Business Support Community Services,Internal Trading Accounts,,EK MOTOR FACTORS LTD,838524,26/08/2015,51918,3.39,0,Wiper blade,381400,Vehicle Mgt Maintenance
South Lakeland District Council,http://opendatacommunities.org/id/district-council/south-lakeland,31/08/2015,Business Support Community Services,Internal Trading Accounts,,EK MOTOR FACTORS LTD,838524,26/08/2015,51919,5.04,0,Wiper blade,381400,Vehicle Mgt Maintenance
South Lakeland District Council,http://opendatacommunities.org/id/district-council/south-lakeland,31/08/2015,Business Support Community Services,Internal Trading Accounts,,EK MOTOR FACTORS LTD,838524,26/08/2015,51920,46.89,0,Wiper blade,381400,Vehicle Mgt Maintenance
South Lakeland District Council,http://opendatacommunities.org/id/district-council/south-lakeland,31/08/2015,Business Support Community Services,Internal Trading Accounts,,EK MOTOR FACTORS LTD,838524,26/08/2015,51921,5.95,0,Wiper blade,381400,Vehicle Mgt Maintenance
South Lakeland District Council,http://opendatacommunities.org/id/district-council/south-lakeland,31/08/2015,Business Support Community Services,Internal Trading Accounts,,EK MOTOR FACTORS LTD,838524,26/08/2015,51922,41.15,0,Wiper blade,381400,Vehicle Mgt Maintenance
South Lakeland District Council,http://opendatacommunities.org/id/district-council/south-lakeland,31/08/2015,Business Support Community Services,Internal Trading Accounts,,EK MOTOR FACTORS LTD,838524,26/08/2015,51923,27.96,0,Wheel bearing,381400,Vehicle Mgt Maintenance
South Lakeland District Council,http://opendatacommunities.org/id/district-council/south-lakeland,31/08/2015,Business Support Community Services,Internal Trading Accounts,,RIBBLESDALE AUTO ELECTRICS 1992 LTD,2732686,26/08/2015,51924,9.84,0,Lamps,381500,Vehicle Mgt Parts
South Lakeland District Council,http://opendatacommunities.org/id/district-council/south-lakeland,31/08/2015,Business Support Community Services,Internal Trading Accounts,,RIBBLESDALE AUTO ELECTRICS 1992 LTD,2732686,26/08/2015,51925,19.36,0,Lamps,381500,Vehicle Mgt Parts
South Lakeland District Council,http://opendatacommunities.org/id/district-council/south-lakeland,31/08/2015,Business Support Community Services,Internal Trading Accounts,,RIBBLESDALE AUTO ELECTRICS 1992 LTD,2732686,26/08/2015,51926,19.36,0,Lamps,381500,Vehicle Mgt Parts
South Lakeland District Council,http://opendatacommunities.org/id/district-council/south-lakeland,31/08/2015,Electoral Services,Central Services,http://opendatacommunities.org/def/concept/finance/sercop/objective/102,ROYAL MAIL GROUP PLC,,26/08/2015,51932,536,0,Canvass return postage,301200,Mail Services� Postage
South Lakeland District Council,http://opendatacommunities.org/id/district-council/south-lakeland,31/08/2015,Business Support Community Services,Housing Services,http://opendatacommunities.org/def/concept/finance/sercop/objective/108,Landlord,7009105,26/08/2015,51953,480,0,Monthly rent ,999999,Unclassifiable
South Lakeland District Council,http://opendatacommunities.org/id/district-council/south-lakeland,31/08/2015,Business Support Community Services,Housing Services,http://opendatacommunities.org/def/concept/finance/sercop/objective/108,Landlord,,26/08/2015,51954,400,0,Monthly rent ,999999,Unclassifiable
South Lakeland District Council,http://opendatacommunities.org/id/district-council/south-lakeland,31/08/2015,Business Support Community Services,Housing Services,http://opendatacommunities.org/def/concept/finance/sercop/objective/108,Landlord,,26/08/2015,51955,480,0,Monthly rent ,999999,Unclassifiable
South Lakeland District Council,http://opendatacommunities.org/id/district-council/south-lakeland,31/08/2015,Business Support Community Services,Housing Services,http://opendatacommunities.org/def/concept/finance/sercop/objective/108,Landlord,,26/08/2015,51956,475,0,Monthly rent ,999999,Unclassifiable
South Lakeland District Council,http://opendatacommunities.org/id/district-council/south-lakeland,31/08/2015,Business Support Community Services,Housing Services,http://opendatacommunities.org/def/concept/finance/sercop/objective/108,Landlord,,26/08/2015,51957,500,0,Monthly rent ,999999,Unclassifiable
South Lakeland District Council,http://opendatacommunities.org/id/district-council/south-lakeland,31/08/2015,Business Support Community Services,Housing Services,http://opendatacommunities.org/def/concept/finance/sercop/objective/108,Landlord,,26/08/2015,51958,625,0,Monthly rent ,202000,Financial Services Rents
South Lakeland District Council,http://opendatacommunities.org/id/district-council/south-lakeland,31/08/2015,Business Support Community Services,Housing Services,http://opendatacommunities.org/def/concept/finance/sercop/objective/108,Landlord,,26/08/2015,51959,500,0,Monthly rent ,250010,Housing Letting Agents
South Lakeland District Council,http://opendatacommunities.org/id/district-council/south-lakeland,31/08/2015,Business Support Community Services,Housing Services,http://opendatacommunities.org/def/concept/finance/sercop/objective/108,Landlord,,26/08/2015,51960,500,0,Monthly rent ,250010,Housing Letting Agents
South Lakeland District Council,http://opendatacommunities.org/id/district-council/south-lakeland,31/08/2015,Business Support Community Services,Housing Services,http://opendatacommunities.org/def/concept/finance/sercop/objective/108,Landlord,,26/08/2015,51961,410,0,Monthly rent ,999999,Unclassifiable
South Lakeland District Council,http://opendatacommunities.org/id/district-council/south-lakeland,31/08/2015,Business Support Community Services,Housing Services,http://opendatacommunities.org/def/concept/finance/sercop/objective/108,Landlord,,26/08/2015,51962,625,0,Monthly rent ,202000,Financial Services Rents
South Lakeland District Council,http://opendatacommunities.org/id/district-council/south-lakeland,31/08/2015,Business Support Community Services,Housing Services,http://opendatacommunities.org/def/concept/finance/sercop/objective/108,Landlord,,26/08/2015,51964,500,0,Monthly rent ,202000,Financial Services Rents
South Lakeland District Council,http://opendatacommunities.org/id/district-council/south-lakeland,31/08/2015,Business Support Community Services,Housing Services,http://opendatacommunities.org/def/concept/finance/sercop/objective/108,Landlord,,26/08/2015,51965,415,0,Monthly rent ,250010,Housing Letting Agents
South Lakeland District Council,http://opendatacommunities.org/id/district-council/south-lakeland,31/08/2015,Legal Services,Cultural Environmental Regulatory & Planning Services,http://opendatacommunities.org/def/concept/finance/sercop/objective/104,HYGIENE CLEANING SUPPLIES LTD,4753934,26/08/2015,51968,178.22,0,"10 x 17"" Red floor pads",131011,Cleaning & Janitorial Cleaning Materials
South Lakeland District Council,http://opendatacommunities.org/id/district-council/south-lakeland,31/08/2015,Human Resources,Central Services,http://opendatacommunities.org/def/concept/finance/sercop/objective/102,EMPLOYMENT PAGES LTD,7363099,26/08/2015,51969,397.8,0,Advert for Hostel Support Officer,261400,HR Temporary & Agency Staff
South Lakeland District Council,http://opendatacommunities.org/id/district-council/south-lakeland,31/08/2015,Social Enterprise Admin,Highways & Transport Services,http://opendatacommunities.org/def/concept/finance/sercop/objective/107,ALLSTAR BUSINESS SOLUTIONS LTD (NCR),2631112,01/08/2015,51981,249.4,0,Fuel for car parks' vehicles starting 1,381600,Vehicle Mgt Leasing
South Lakeland District Council,http://opendatacommunities.org/id/district-council/south-lakeland,31/08/2015,Social Enterprise Admin,Cultural Environmental Regulatory & Planning Services,http://opendatacommunities.org/def/concept/finance/sercop/objective/104,ALLSTAR BUSINESS SOLUTIONS LTD (NCR),2631112,01/08/2015,51981,60.57,0,Fuel for car parks' vehicles starting 1,381600,Vehicle Mgt Leasing
South Lakeland District Council,http://opendatacommunities.org/id/district-council/south-lakeland,31/08/2015,Social Enterprise Admin,Central Services,http://opendatacommunities.org/def/concept/finance/sercop/objective/102,EE UK LTD (NCR),,01/08/2015,52010,60.49,0,Data for 19 Sim cards for pay and,351000,Street & Traffic Parking Car Parks
South Lakeland District Council,http://opendatacommunities.org/id/district-council/south-lakeland,31/08/2015,Social Enterprise Admin,Highways & Transport Services,http://opendatacommunities.org/def/concept/finance/sercop/objective/107,EE UK LTD (NCR),,01/08/2015,52010,103.75,0,Data for 19 Sim cards for pay and,351000,Street & Traffic Parking Car Parks
